Workbook

Sheet Night ONE
A1: Night 1- ALL at Springdale | E1: - Teams Play each team within their own Bracket | G1: Score | M1: RESULTS- Night One
A2: # games | B2: time | C2: Courts | D2: Bracket | E2: HOME | F2: AWAY | G2: W | H2: L | I2: Winner | J2: Pt Diff | L2: Division | M2: Teams | N2: Win | O2: Loss | Q2: Team # | R2: # of Games | T2: Bracket | U2: NO BREAK | V2: 30 MIN | W2: 60 MIN | X2: 90 MIN
A3: 1 | B3: 06:00:00 | C3: court 1 | D3: B1 | E3: CSTC- Spikological Warfare | F3: SARC- Sand Diggers | J3: =G3-H3 -> 0 | L3: A | M3: GS- Sand Gators | N3: =COUNTIF(I$3:I$50,M3) -> 0 | O3: =3-N3 -> 3 | Q3: 1 | R3: 3 | T3: A
A4: 2 | C4: court 2 | D4: B1 | E4: NR- Hit That Thang | F4: SO- Team Kona | J4: =G4-H4 -> 0 | L4: A | M4: LKP- Will Play for Sets | N4: =COUNTIF(I$3:I$50,M4) -> 0 | O4: 3 | Q4: 2 | R4: 3 | T4: B
A5: 3 | C5: court 3 | D5: B2 | E5: LKP- Block You Like a Hurricane | F5: LKP- Bumpn' Uglies | J5: 0 | L5: A | M5: LKP- Air Vectors | N5: 0 | O5: 3 | Q5: 3 | R5: 3 | T5: C
A6: 4 | C6: court 4 | D6: B2 | E6: GS- Where's My Beaches At? | F6: GS- Vicious & Delicious | J6: 0 | L6: A | M6: LKP- Pass It Around | N6: 0 | O6: 3 | Q6: 4 | R6: 3 | T6: D
A7: 5 | C7: court 5 | D7: C2 | E7: LKP- Casual Sets | F7: HG- Swingrays | J7: 0 | L7: A | M7: SO- Kiss My Ace | N7: 0 | O7: 3 | Q7: 5 | R7: 3 | T7: E
A8: 6 | C8: court 6 | D8: C2 | E8: GS- El Toro's Revenge | F8: SARC- Sets on the Beach | J8: 0 | L8: A | M8: SARC- $et for Life | N8: 0 | O8: 3 | Q8: 6 | R8: 3 | T8: F
A9: 7 | B9: 06:30:00 | C9: court 1 | D9: A1 | E9: SO- Kiss My Ace | F9: SARC- $et for Life | J9: 0 | L9: A | M9: NR- Six Pack Attack | N9: 0 | O9: 3 | Q9: 7 | R9: 3 | T9: G
A10: 8 | C10: court 2 | D10: A1 | E10: SARC- Volleywood | F10: LKP- Air Vectors | J10: 0 | L10: A | M10: SARC- Volleywood | N10: 0 | O10: 3 | Q10: 8 | R10: 3 | T10: H
A11: 9 | C11: court 3 | D11: D1 | E11: SARC- Raleigh Brawl | F11: SARC- Good Bumps, Nice Sets | J11: 0 | L11: B | M11: CSTC- Spikological Warfare | N11: =COUNTIF(I$3:I$50,M19) -> 0 | O11: 3 | Q11: 9 | R11: 3
A12: 10 | C12: court 4 | D12: D1 | E12: SARC- Here for Beer | F12: SARC- Mizfits | J12: 0 | L12: B | M12: LKP- Block You Like a Hurricane | N12: 0 | O12: 3 | Q12: 10 | R12: 3
A13: 11 | C13: court 5 | D13: C1 | E13: SARC- I'd Hit That | F13: SARC- Dirt Devils | J13: 0 | L13: B | M13: GS- Vicious & Delicious | N13: 0 | O13: 3 | Q13: 11 | R13: 3
A14: 12 | C14: court 6 | D14: C1 | E14: SARC- Unprotected Sets | F14: SARC- Notorious D.I.G. | J14: 0 | L14: B | M14: NR- Hit That Thang | N14: 0 | O14: 3 | Q14: 12 | R14: 3
A15: 13 | B15: 07:00:00 | C15: court 1 | D15: C2 | E15: LKP- Casual Sets | F15: GS- El Toro's Revenge | J15: 0 | L15: B | M15: GS- Where's My Beaches At? | N15: 0 | O15: 3 | Q15: 13 | R15: 3
A16: 14 | C16: court 2 | D16: C2 | E16: HG- Swingrays | F16: SARC- Sets on the Beach | J16: 0 | L16: B | M16: LKP- Bumpn' Uglies | N16: 0 | O16: 3 | Q16: 14 | R16: 3
A17: 15 | C17: court 3 | D17: B1 | E17: CSTC- Spikological Warfare | F17: NR- Hit That Thang | J17: 0 | L17: B | M17: SARC- Sand Diggers | N17: 0 | O17: 3 | Q17: 15 | R17: 3
A18: 16 | C18: court 4 | D18: B1 | E18: SARC- Sand Diggers | F18: SO- Team Kona | J18: 0 | L18: B | M18: SO- Team Kona | N18: 0 | O18: 3 | Q18: 16 | R18: 3
A19: 17 | C19: court 5 | D19: B2 | E19: LKP- Block You Like a Hurricane | F19: GS- Where's My Beaches At? | J19: 0 | L19: C | M19: SARC- Dirt Devils | N19: =COUNTIF(I$3:I$50,M11) -> 0 | O19: 3 | Q19: 17 | R19: 3
A20: 18 | C20: court 6 | D20: B2 | E20: LKP- Bumpn' Uglies | F20: GS- Vicious & Delicious | J20: 0 | L20: C | M20: SARC- I'd Hit That | N20: 0 | O20: 3 | Q20: 18 | R20: 3
A21: 19 | B21: 07:30:00 | C21: court 1 | D21: A2 | E21: LKP- Will Play for Sets | F21: LKP- Pass It Around | J21: 0 | L21: C | M21: LKP- Casual Sets | N21: 0 | O21: 3 | Q21: 19 | R21: 3
A22: 20 | C22: court 2 | D22: A2 | E22: GS- Sand Gators | F22: NR- Six Pack Attack | J22: 0 | L22: C | M22: SARC- Unprotected Sets | N22: 0 | O22: 3 | Q22: 20 | R22: 3
A23: 21 | C23: court 3 | D23: C1 | E23: SARC- I'd Hit That | F23: SARC- Unprotected Sets | J23: 0 | L23: C | M23: SARC- Notorious D.I.G. | N23: 0 | O23: 3 | Q23: 21 | R23: 3
A24: 22 | C24: court 4 | D24: C1 | E24: SARC- Dirt Devils | F24: SARC- Notorious D.I.G. | J24: 0 | L24: C | M24: SARC- Sets on the Beach | N24: 0 | O24: 3 | Q24: 22 | R24: 3
A25: 23 | C25: court 5 | D25: D2 | E25: CSTC- Volley Llamas | F25: CSTC- Sand in Strange Places | J25: 0 | L25: C | M25: HG- Swingrays | N25: 0 | O25: 3 | Q25: 23 | R25: 3
A26: 24 | C26: court 6 | D26: D2 | E26: GS- Rhymes with Stupid | F26: SARC- Mojo Risin | J26: 0 | L26: C | M26: GS- El Toro's Revenge | N26: 0 | O26: 3 | Q26: 24 | R26: 3
A27: 25 | B27: 08:00:00 | C27: court 1 | D27: A1 | E27: SO- Kiss My Ace | F27: SARC- Volleywood | J27: 0 | L27: D | M27: SARC- Good Bumps, Nice Sets | N27: 0 | O27: 3 | Q27: 25 | R27: 3
A28: 26 | C28: court 2 | D28: A1 | E28: SARC- $et for Life | F28: LKP- Air Vectors | J28: 0 | L28: D | M28: CSTC- Sand in Strange Places | N28: 0 | O28: 3 | Q28: 26 | R28: 3
A29: 27 | C29: court 3 | D29: B2 | E29: GS- Vicious & Delicious | F29: LKP- Block You Like a Hurricane | J29: 0 | L29: D | M29: GS- Rhymes with Stupid | N29: 0 | O29: 3 | Q29: 27 | R29: 3
A30: 28 | C30: court 4 | D30: B2 | E30: LKP- Bumpn' Uglies | F30: GS- Where's My Beaches At? | J30: 0 | L30: D | M30: SARC- Mojo Risin | N30: 0 | O30: 3 | Q30: 28 | R30: 3
A31: 29 | C31: court 5 | D31: D1 | E31: SARC- Raleigh Brawl | F31: SARC- Here for Beer | J31: 0 | L31: D | M31: SARC- Raleigh Brawl | N31: 0 | O31: 3 | Q31: 29 | R31: 3
A32: 30 | C32: court 6 | D32: D1 | E32: SARC- Good Bumps, Nice Sets | F32: SARC- Mizfits | J32: 0 | L32: D | M32: SARC- Mizfits | N32: 0 | O32: 3 | Q32: 30 | R32: 3
A33: 31 | B33: 08:30:00 | C33: court 1 | D33: C1 | E33: SARC- Notorious D.I.G. | F33: SARC- I'd Hit That | J33: 0 | L33: D | M33: CSTC- Volley Llamas | N33: 0 | O33: 3 | Q33: 31 | R33: 3
A34: 32 | C34: court 2 | D34: C1 | E34: SARC- Dirt Devils | F34: SARC- Unprotected Sets | J34: 0 | L34: D | M34: SARC- Here for Beer | N34: 0 | O34: 3 | Q34: 32 | R34: 3
A35: 33 | C35: court 3 | D35: C2 | E35: HG- Swingrays | F35: GS- El Toro's Revenge | J35: 0
A36: 34 | C36: court 4 | D36: C2 | E36: SARC- Sets on the Beach | F36: LKP- Casual Sets | J36: 0
A37: 35 | C37: court 5 | D37: B1 | E37: SO- Team Kona | F37: CSTC- Spikological Warfare | J37: 0
A38: 36 | C38: court 6 | D38: B1 | E38: SARC- Sand Diggers | F38: NR- Hit That Thang | J38: 0
A39: 37 | B39: 09:00:00 | C39: court 1 | D39: A2 | E39: LKP- Pass It Around | F39: NR- Six Pack Attack | J39: 0
A40: 38 | C40: court 2 | D40: A2 | E40: LKP- Will Play for Sets | F40: GS- Sand Gators | J40: 0
A41: 39 | C41: court 3 | D41: D2 | E41: CSTC- Volley Llamas | F41: GS- Rhymes with Stupid | J41: 0
A42: 40 | C42: court 4 | D42: D2 | E42: CSTC- Sand in Strange Places | F42: SARC- Mojo Risin | J42: 0
A43: 41 | B43: 09:30:00 | C43: court 1 | D43: D1 | E43: SARC- Mizfits | F43: SARC- Raleigh Brawl | J43: 0
A44: 42 | C44: court 2 | D44: D1 | E44: SARC- Good Bumps, Nice Sets | F44: SARC- Here for Beer | J44: 0
A45: 43 | C45: court 3 | D45: A1 | E45: LKP- Air Vectors | F45: SO- Kiss My Ace | J45: 0
A46: 44 | C46: court 4 | D46: A1 | E46: SARC- $et for Life | F46: SARC- Volleywood | J46: 0
A47: 45 | B47: 10:00:00 | C47: court 1 | D47: D2 | E47: SARC- Mojo Risin | F47: CSTC- Volley Llamas | J47: 0
A48: 46 | C48: court 2 | D48: D2 | E48: CSTC- Sand in Strange Places | F48: GS- Rhymes with Stupid | J48: 0
A49: 47 | C49: court 3 | D49: A2 | E49: NR- Six Pack Attack | F49: LKP- Will Play for Sets | J49: 0
A50: 48 | C50: court 4 | D50: A2 | E50: LKP- Pass It Around | F50: GS- Sand Gators | J50: 0

Sheet Night ONE-option 2 (hidden)
A1: Night 1 | B1: ALL at Springdale
A2: # games | B2: time | C2: Courts | K2: NO BREAK | L2: 30 MIN | M2: 60 MIN | N2: 90 MIN
A3: 1 | B3: 06:00:00 | C3: court 1 | D3: C | E3: 9 | F3: 10 | J3: A | L3: 1 | M3: 1
A4: 2 | C4: court 2 | D4: C | E4: 11 | F4: 12 | J4: B | L4: 1 | M4: 1
A5: 3 | C5: court 3 | D5: D | E5: 13 | F5: 14 | J5: C | L5: 1 | M5: 1
A6: 4 | C6: court 4 | D6: D | E6: 15 | F6: 16 | J6: D | L6: 1 | M6: 1
A7: 5 | C7: court 5 | D7: E | E7: 17 | F7: 18 | J7: E | L7: 1 | M7: 1
A8: 6 | C8: court 6 | D8: E | E8: 19 | F8: 20 | J8: F | M8: 1 | N8: 1
A9: 7 | B9: 06:30:00 | C9: court 1 | D9: A | E9: 1 | F9: 2 | J9: G | L9: 1 | M9: 1
A10: 8 | C10: court 2 | D10: A | E10: 3 | F10: 4 | J10: H | L10: 1 | M10: 1
A11: 9 | C11: court 3 | D11: G | E11: 25 | F11: 26
A12: 10 | C12: court 4 | D12: G | E12: 27 | F12: 28
A13: 11 | C13: court 5 | D13: F | E13: 21 | F13: 22
A14: 12 | C14: court 6 | D14: F | E14: 21 | F14: 23
A15: 13 | B15: 07:00:00 | C15: court 1 | D15: B | E15: 5 | F15: 6
A16: 14 | C16: court 2 | D16: B | E16: 7 | F16: 8
A17: 15 | C17: court 3 | D17: C | E17: 9 | F17: 11
A18: 16 | C18: court 4 | D18: C | E18: 10 | F18: 12
A19: 17 | C19: court 5 | D19: D | E19: 13 | F19: 15
A20: 18 | C20: court 6 | D20: D | E20: 14 | F20: 16
A21: 19 | B21: 07:30:00 | C21: court 1 | D21: A | E21: 2 | F21: 4
A22: 20 | C22: court 2 | D22: A | E22: 1 | F22: 3
A23: 21 | C23: court 3 | D23: E | E23: 17 | F23: 19
A24: 22 | C24: court 4 | D24: E | E24: 18 | F24: 20
A25: 23 | C25: court 5 | D25: H | E25: 29 | F25: 30
A26: 24 | C26: court 6 | D26: H | E26: 31 | F26: 32
A27: 25 | B27: 08:00:00 | C27: court 1 | D27: B | E27: 6 | F27: 8
A28: 26 | C28: court 2 | D28: B | E28: 5 | F28: 7
A29: 27 | C29: court 3 | D29: F | E29: 24 | F29: 21
A30: 28 | C30: court 4 | D30: F | E30: 23 | F30: 24
A31: 29 | C31: court 5 | D31: G | E31: 25 | F31: 27
A32: 30 | C32: court 6 | D32: G | E32: 26 | F32: 28
A33: 31 | B33: 08:30:00 | C33: court 1 | D33: E | E33: 20 | F33: 17
A34: 32 | C34: court 2 | D34: E | E34: 18 | F34: 19
A35: 33 | C35: court 3 | D35: D | E35: 16 | F35: 13
A36: 34 | C36: court 4 | D36: D | E36: 14 | F36: 15
A37: 35 | C37: court 5 | D37: C | E37: 12 | F37: 9
A38: 36 | C38: court 6 | D38: C | E38: 10 | F38: 11
A39: 37 | B39: 09:00:00 | C39: court 1 | D39: A | E39: 4 | F39: 1
A40: 38 | C40: court 2 | D40: A | E40: 2 | F40: 3
A41: 39 | C41: court 3 | D41: H | E41: 29 | F41: 31
A42: 40 | C42: court 4 | D42: H | E42: 30 | F42: 32
A43: 41 | B43: 09:30:00 | C43: court 1 | D43: B | E43: 8 | F43: 5
A44: 42 | C44: court 2 | D44: B | E44: 6 | F44: 7
A45: 43 | C45: court 3 | D45: G | E45: 28 | F45: 25
A46: 44 | C46: court 4 | D46: G | E46: 26 | F46: 27
A47: 45 | B47: 10:00:00 | C47: court 1 | D47: F | E47: 22 | F47: 23
A48: 46 | C48: court 2 | D48: F | E48: 22 | F48: 24
A49: 47 | C49: court 3 | D49: H | E49: 32 | F49: 29
A50: 48 | C50: court 4 | D50: H | E50: 30 | F50: 31

Sheet NIGHT TWO
A1: Lake Park A1 VS A2 Brackets (A Division) | G1: Score | M1: RESULTS- After Night Two
D2: Division | E2: HOME | F2: AWAY | G2: W | H2: L | I2: Winner | J2: Pt Diff | L2: Division | M2: Teams | N2: Win | O2: Loss | S2: Teams on Lake Park | U2: Team | V2: No Break | W2: 30 min | X2: 60 min | AA2: ct 1 | AB2: ct 3
A3: 1 | B3: 06:00:00 | C3: court 1 | D3: A | E3: SARC- $et for Life | F3: LKP- Pass It Around | J3: =G3-H3 -> 0 | L3: A | M3: GS- Sand Gators | N3: =COUNTIF('Night ONE'!I$3:I$50,M3)+COUNTIF(I$3:I$145,M3) -> 0 | O3: =7-N3 -> 7 | S3: SARC- $et for Life | U3: 1 | W3: 3 | Z3: 1 | AA3: 2 | AB3: 2
A4: 2 | C4: court 2 | D4: A | E4: SO- Kiss My Ace | F4: LKP- Will Play for Sets | J4: =G4-H4 -> 0 | L4: A | M4: LKP- Will Play for Sets | N4: =COUNTIF('Night ONE'!I$3:I$50,M4)+COUNTIF(I$3:I$145,M4) -> 0 | O4: 7 | S4: SO- Kiss My Ace | U4: 2 | W4: 3 | Z4: 2 | AA4: 2 | AB4: 2
A5: 3 | B5: 06:30:00 | C5: court 1 | D5: A | E5: LKP- Air Vectors | F5: NR- Six Pack Attack | J5: 0 | L5: A | M5: LKP- Air Vectors | N5: =COUNTIF('Night ONE'!I$3:I$50,M5)+COUNTIF(I$3:I$145,M5) -> 0 | O5: 7 | S5: LKP- Air Vectors | U5: 3 | W5: 3 | Z5: 3 | AA5: 2 | AB5: 2
A6: 4 | C6: court 2 | D6: A | E6: SARC- Volleywood | F6: GS- Sand Gators | J6: 0 | L6: A | M6: LKP- Pass It Around | N6: =COUNTIF('Night ONE'!I$3:I$50,M6)+COUNTIF(I$3:I$145,M6) -> 0 | O6: 7 | S6: SARC- Volleywood | U6: 4 | W6: 3 | Z6: 4 | AA6: 2 | AB6: 2
A7: 5 | B7: 07:00:00 | C7: court 1 | D7: A | E7: SARC- $et for Life | F7: LKP- Will Play for Sets | J7: 0 | L7: A | M7: SO- Kiss My Ace | N7: =COUNTIF('Night ONE'!I$3:I$50,M7)+COUNTIF(I$3:I$145,M7) -> 0 | O7: 7 | S7: LKP- Pass It Around | U7: 5 | W7: 2 | X7: 1 | Z7: 5 | AA7: 2 | AB7: 2
A8: 6 | C8: court 2 | D8: A | E8: SO- Kiss My Ace | F8: LKP- Pass It Around | J8: 0 | L8: A | M8: SARC- $et for Life | N8: =COUNTIF('Night ONE'!I$3:I$50,M8)+COUNTIF(I$3:I$145,M8) -> 0 | O8: 7 | S8: LKP- Will Play for Sets | U8: 6 | W8: 2 | X8: 1 | Z8: 6 | AA8: 2 | AB8: 2
A9: 7 | B9: 07:30:00 | C9: court 1 | D9: A | E9: LKP- Air Vectors | F9: GS- Sand Gators | J9: 0 | L9: A | M9: NR- Six Pack Attack | N9: =COUNTIF('Night ONE'!I$3:I$50,M9)+COUNTIF(I$3:I$145,M9) -> 0 | O9: 7 | S9: NR- Six Pack Attack | U9: 7 | V9: 1 | W9: 2 | Z9: 7 | AA9: 2 | AB9: 2
A10: 8 | C10: court 2 | D10: A | E10: SARC- Volleywood | F10: NR- Six Pack Attack | J10: 0 | L10: A | M10: SARC- Volleywood | N10: =COUNTIF('Night ONE'!I$3:I$50,M10)+COUNTIF(I$3:I$145,M10) -> 0 | O10: 7 | S10: GS- Sand Gators | U10: 8 | V10: 1 | W10: 2 | Z10: 8 | AA10: 2 | AB10: 2
A11: 9 | B11: 08:00:00 | C11: court 1 | D11: A | E11: GS- Sand Gators | F11: SO- Kiss My Ace | J11: 0 | L11: B | M11: CSTC- Spikological Warfare | N11: =COUNTIF('Night ONE'!I$3:I$50,M11)+COUNTIF(I$3:I$145,M11) -> 0 | O11: 7 | AA11: =SUM(AA3:AA10) -> 16 | AB11: =SUM(AB3:AB10) -> 16
A12: 10 | C12: court 2 | D12: A | E12: NR- Six Pack Attack | F12: SARC- $et for Life | J12: 0 | L12: B | M12: LKP- Block You Like a Hurricane | N12: =COUNTIF('Night ONE'!I$3:I$50,M12)+COUNTIF(I$3:I$145,M12) -> 0 | O12: 7
A13: 11 | B13: 08:30:00 | C13: court 1 | D13: A | E13: LKP- Will Play for Sets | F13: SARC- Volleywood | J13: 0 | L13: B | M13: GS- Vicious & Delicious | N13: =COUNTIF('Night ONE'!I$3:I$50,M13)+COUNTIF(I$3:I$145,M13) -> 0 | O13: 7
A14: 12 | C14: court 2 | D14: A | E14: LKP- Pass It Around | F14: LKP- Air Vectors | J14: 0 | L14: B | M14: NR- Hit That Thang | N14: =COUNTIF('Night ONE'!I$3:I$50,M14)+COUNTIF(I$3:I$145,M14) -> 0 | O14: 7
A15: 13 | B15: 09:00:00 | C15: court 1 | D15: A | E15: NR- Six Pack Attack | F15: SO- Kiss My Ace | J15: 0 | L15: B | M15: GS- Where's My Beaches At? | N15: =COUNTIF('Night ONE'!I$3:I$50,M15)+COUNTIF(I$3:I$145,M15) -> 0 | O15: 7
A16: 14 | C16: court 2 | D16: A | E16: GS- Sand Gators | F16: SARC- $et for Life | J16: 0 | L16: B | M16: LKP- Bumpn' Uglies | N16: =COUNTIF('Night ONE'!I$3:I$50,M16)+COUNTIF(I$3:I$145,M16) -> 0 | O16: 7
A17: 15 | B17: 09:30:00 | C17: court 1 | D17: A | E17: LKP- Pass It Around | F17: SARC- Volleywood | J17: 0 | L17: B | M17: SARC- Sand Diggers | N17: =COUNTIF('Night ONE'!I$3:I$50,M17)+COUNTIF(I$3:I$145,M17) -> 0 | O17: 7
A18: 16 | C18: court 2 | D18: A | E18: LKP- Will Play for Sets | F18: LKP- Air Vectors | J18: 0 | L18: B | M18: SO- Team Kona | N18: =COUNTIF('Night ONE'!I$3:I$50,M18)+COUNTIF(I$3:I$145,M18) -> 0 | O18: 7
L19: C | M19: SARC- Dirt Devils | N19: =COUNTIF('Night ONE'!I$3:I$50,M19)+COUNTIF(I$3:I$145,M19) -> 0 | O19: 7
A20: Greystone- B1 vs B2 Brackets (B Division) | G20: Score | L20: C | M20: SARC- I'd Hit That | N20: =COUNTIF('Night ONE'!I$3:I$50,M20)+COUNTIF(I$3:I$145,M20) -> 0 | O20: 7
D21: Division | E21: HOME | F21: AWAY | G21: W | H21: L | I21: Winner | J21: Pt Diff | L21: C | M21: LKP- Casual Sets | N21: =COUNTIF('Night ONE'!I$3:I$50,M21)+COUNTIF(I$3:I$145,M21) -> 0 | O21: 7 | S21: Teams at Greystone
A22: 1 | B22: 06:00:00 | C22: court 1 | D22: B | E22: SARC- Sand Diggers | F22: LKP- Bumpn' Uglies | J22: =G22-H22 -> 0 | L22: C | M22: SARC- Unprotected Sets | N22: =COUNTIF('Night ONE'!I$3:I$50,M22)+COUNTIF(I$3:I$145,M22) -> 0 | O22: 7 | S22: SARC- Sand Diggers
A23: 2 | C23: court 2 | D23: B | E23: CSTC- Spikological Warfare | F23: LKP- Block You Like a Hurricane | J23: =G23-H23 -> 0 | L23: C | M23: SARC- Notorious D.I.G. | N23: =COUNTIF('Night ONE'!I$3:I$50,M23)+COUNTIF(I$3:I$145,M23) -> 0 | O23: 7 | S23: CSTC- Spikological Warfare
A24: 3 | B24: 06:30:00 | C24: court 1 | D24: B | E24: SO- Team Kona | F24: GS- Vicious & Delicious | J24: 0 | L24: C | M24: SARC- Sets on the Beach | N24: =COUNTIF('Night ONE'!I$3:I$50,M24)+COUNTIF(I$3:I$145,M24) -> 0 | O24: 7 | S24: SO- Team Kona
A25: 4 | C25: court 2 | D25: B | E25: NR- Hit That Thang | F25: GS- Where's My Beaches At? | J25: 0 | L25: C | M25: HG- Swingrays | N25: =COUNTIF('Night ONE'!I$3:I$50,M25)+COUNTIF(I$3:I$145,M25) -> 0 | O25: 7 | S25: NR- Hit That Thang
A26: 5 | B26: 07:00:00 | C26: court 1 | D26: B | E26: SARC- Sand Diggers | F26: LKP- Block You Like a Hurricane | J26: 0 | L26: C | M26: GS- El Toro's Revenge | N26: =COUNTIF('Night ONE'!I$3:I$50,M26)+COUNTIF(I$3:I$145,M26) -> 0 | O26: 7 | S26: LKP- Bumpn' Uglies
A27: 6 | C27: court 2 | D27: B | E27: CSTC- Spikological Warfare | F27: LKP- Bumpn' Uglies | J27: 0 | L27: D | M27: SARC- Good Bumps, Nice Sets | N27: =COUNTIF('Night ONE'!I$3:I$50,M27)+COUNTIF(I$3:I$145,M27) -> 0 | O27: 7 | S27: LKP- Block You Like a Hurricane
A28: 7 | B28: 07:30:00 | C28: court 1 | D28: B | E28: SO- Team Kona | F28: GS- Where's My Beaches At? | J28: 0 | L28: D | M28: CSTC- Sand in Strange Places | N28: =COUNTIF('Night ONE'!I$3:I$50,M28)+COUNTIF(I$3:I$145,M28) -> 0 | O28: 7 | S28: GS- Vicious & Delicious
A29: 8 | C29: court 2 | D29: B | E29: NR- Hit That Thang | F29: GS- Vicious & Delicious | J29: 0 | L29: D | M29: GS- Rhymes with Stupid | N29: =COUNTIF('Night ONE'!I$3:I$50,M29)+COUNTIF(I$3:I$145,M29) -> 0 | O29: 7 | S29: GS- Where's My Beaches At?
A30: 9 | B30: 08:00:00 | C30: court 1 | D30: B | E30: GS- Where's My Beaches At? | F30: CSTC- Spikological Warfare | J30: 0 | L30: D | M30: SARC- Mojo Risin | N30: =COUNTIF('Night ONE'!I$3:I$50,M30)+COUNTIF(I$3:I$145,M30) -> 0 | O30: 7
A31: 10 | C31: court 2 | D31: B | E31: GS- Vicious & Delicious | F31: SARC- Sand Diggers | J31: 0 | L31: D | M31: SARC- Raleigh Brawl | N31: =COUNTIF('Night ONE'!I$3:I$50,M31)+COUNTIF(I$3:I$145,M31) -> 0 | O31: 7
A32: 11 | B32: 08:30:00 | C32: court 1 | D32: B | E32: LKP- Block You Like a Hurricane | F32: NR- Hit That Thang | J32: 0 | L32: D | M32: SARC- Mizfits | N32: =COUNTIF('Night ONE'!I$3:I$50,M32)+COUNTIF(I$3:I$145,M32) -> 0 | O32: 7
A33: 12 | C33: court 2 | D33: B | E33: LKP- Bumpn' Uglies | F33: SO- Team Kona | J33: 0 | L33: D | M33: CSTC- Volley Llamas | N33: =COUNTIF('Night ONE'!I$3:I$50,M33)+COUNTIF(I$3:I$145,M33) -> 0 | O33: 7
A34: 13 | B34: 09:00:00 | C34: court 1 | D34: B | E34: GS- Vicious & Delicious | F34: CSTC- Spikological Warfare | J34: 0 | L34: D | M34: SARC- Here for Beer | N34: =COUNTIF('Night ONE'!I$3:I$50,M34)+COUNTIF(I$3:I$145,M34) -> 0 | O34: 7
A35: 14 | C35: court 2 | D35: B | E35: GS- Where's My Beaches At? | F35: SARC- Sand Diggers | J35: 0
A36: 15 | B36: 09:30:00 | C36: court 1 | D36: B | E36: LKP- Bumpn' Uglies | F36: NR- Hit That Thang | J36: 0
A37: 16 | C37: court 2 | D37: B | E37: LKP- Block You Like a Hurricane | F37: SO- Team Kona | J37: 0
A39: SARC Red- B1 vs B2 Brackets (B Division) | G39: Score
D40: Division | E40: HOME | F40: AWAY | G40: W | H40: L | I40: Winner | J40: Pt Diff | S40: Teams on SARC Blue Courts
B41: 06:00:00 | C41: court 1 | D41: B | E41: SARC- Unprotected Sets | F41: SARC- Sets on the Beach | J41: N/A | S41: SARC- Dirt Devils
C42: court 2 | D42: B | E42: SARC- I'd Hit That | F42: HG- Swingrays | J42: N/A | S42: SARC- I'd Hit That
B43: 06:30:00 | C43: court 1 | E43: Sponsor #1 | F43: Sponsor #2 | J43: N/A | S43: SARC- Notorious D.I.G.
C44: court 2 | D44: B | E44: SARC- Notorious D.I.G. | F44: GS- El Toro's Revenge | J44: N/A | S44: SARC- Unprotected Sets
B45: 07:00:00 | C45: court 1 | D45: B | E45: SARC- Dirt Devils | F45: LKP- Casual Sets | J45: N/A | S45: HG- Swingrays
C46: court 2 | D46: B | E46: GS- El Toro's Revenge | F46: SARC- I'd Hit That | J46: N/A | S46: LKP- Casual Sets
B47: 07:30:00 | C47: court 1 | E47: Sponsor #1 | F47: Sponsor #2 | J47: N/A | S47: SARC- Sets on the Beach
C48: court 2 | D48: B | E48: SARC- Sets on the Beach | F48: SARC- Dirt Devils | J48: N/A | S48: GS- El Toro's Revenge
B49: 08:00:00 | C49: court 1 | D49: B | E49: LKP- Casual Sets | F49: SARC- Unprotected Sets | J49: N/A
C50: court 2 | D50: B | E50: HG- Swingrays | F50: SARC- Notorious D.I.G. | J50: N/A
B51: 08:30:00 | C51: court 3 | D51: B | E51: SARC- Sets on the Beach | F51: SARC- I'd Hit That | J51: N/A
C52: court 4 | D52: B | E52: GS- El Toro's Revenge | F52: SARC- Dirt Devils | J52: N/A
B53: 09:00:00 | C53: court 3 | D53: B | E53: HG- Swingrays | F53: SARC- Unprotected Sets | J53: N/A
C54: court 4 | D54: B | E54: LKP- Casual Sets | F54: SARC- Notorious D.I.G. | J54: N/A
B55: 09:30:00 | C55: court 3 | D55: B | E55: SARC- Dirt Devils | F55: HG- Swingrays | J55: N/A
C56: court 4 | D56: B | E56: SARC- I'd Hit That | F56: LKP- Casual Sets | J56: N/A
B57: 10:00:00 | C57: court 3 | D57: B | E57: SARC- Notorious D.I.G. | F57: SARC- Sets on the Beach | J57: N/A
C58: court 4 | D58: B | E58: SARC- Unprotected Sets | F58: GS- El Toro's Revenge | J58: N/A
A62: SARC Blue- D1 vs D2 Brackets (D Division) | G62: Score
D63: Division | E63: HOME | F63: AWAY | G63: W | H63: L | I63: Winner | J63: Pt Diff
B64: 06:00:00 | C64: court 3 | D64: D | E64: SARC- Mizfits | F64: SARC- Mojo Risin | J64: N/A
C65: court 4 | D65: D | E65: SARC- Here for Beer | F65: GS- Rhymes with Stupid | J65: N/A | S65: Teams at SARC
B66: 06:30:00 | C66: court 3 | D66: D | E66: SARC- Good Bumps, Nice Sets | F66: CSTC- Sand in Strange Places | J66: N/A | S66: SARC- Good Bumps, Nice Sets
C67: court 4 | D67: D | E67: SARC- Raleigh Brawl | F67: CSTC- Volley Llamas | J67: N/A | S67: SARC- Raleigh Brawl
B68: 07:00:00 | C68: court 3 | D68: D | E68: SARC- Mizfits | F68: GS- Rhymes with Stupid | J68: N/A | S68: SARC- Mizfits
C69: court 4 | D69: D | E69: SARC- Here for Beer | F69: SARC- Mojo Risin | J69: N/A | S69: SARC- Here for Beer
B70: 07:30:00 | C70: court 3 | D70: D | E70: SARC- Good Bumps, Nice Sets | F70: CSTC- Volley Llamas | J70: N/A | S70: CSTC- Sand in Strange Places
C71: court 4 | D71: D | E71: SARC- Raleigh Brawl | F71: CSTC- Sand in Strange Places | J71: N/A | S71: CSTC- Volley Llamas
B72: 08:00:00 | C72: court 3 | D72: D | E72: CSTC- Volley Llamas | F72: SARC- Here for Beer | J72: N/A | S72: SARC- Mojo Risin
C73: court 4 | D73: D | E73: CSTC- Sand in Strange Places | F73: SARC- Mizfits | J73: N/A | S73: GS- Rhymes with Stupid
B74: 08:30:00 | C74: court 1 | E74: Sponsor #1 | F74: Sponsor #2 | J74: N/A
C75: court 2 | D75: D | E75: GS- Rhymes with Stupid | F75: SARC- Raleigh Brawl | J75: N/A
B76: 09:00:00 | C76: court 1 | D76: D | E76: SARC- Mojo Risin | F76: SARC- Good Bumps, Nice Sets | J76: N/A
C77: court 2 | D77: D | E77: CSTC- Volley Llamas | F77: SARC- Mizfits | J77: N/A
B78: 09:30:00 | C78: court 1 | D78: D | E78: CSTC- Sand in Strange Places | F78: SARC- Here for Beer | J78: N/A
C79: court 2 | D79: D | E79: SARC- Mojo Risin | F79: SARC- Raleigh Brawl | J79: N/A
B80: 10:00:00 | C80: court 1 | D80: D | E80: GS- Rhymes with Stupid | F80: SARC- Good Bumps, Nice Sets | J80: N/A
C81: court 2 | J81: N/A
A89: Subject to change due to NUMBER of Teams in Sponsor Tournament
A90: SPONSOR TOURNAMENT- 6 teams | K90: SPONSOR TOURNAMENT- 5 teams | U90: SPONSOR TOURNAMENT- 4 teams
A91: 18:30:00 | C91: GRASS CT 5 | E91: Sponsor #1 | F91: Sponsor #2 | K91: 18:30:00 | M91: GRASS CT 5 | O91: Sponsor #1 | P91: Sponsor #2 | U91: 19:00:00 | W91: GRASS CT 5
C92: GRASS CT 6 | E92: Sponsor #3 | F92: Sponsor #4 | M92: GRASS CT 6 | O92: Sponsor #3 | P92: Sponsor #4 | W92: GRASS CT 6
C93: court 4 | E93: Sponsor #5 | F93: Sponsor #6 | O93: Sponsor #5 | P93: (Bye)
A95: 19:30:00 | C95: court 1 | E95: Sponsor #1 | F95: Sponsor #3 | K95: 19:30:00 | M95: court 1 | O95: Sponsor #1 | P95: Sponsor #3 | U95: 20:00:00 | W95: court 1
C96: court 2 | E96: Sponsor #5 | F96: Sponsor #2 | M96: court 2 | O96: Sponsor #5 | P96: Sponsor #2 | W96: court 2
C97: court 3 | E97: Sponsor #4 | F97: Sponsor #6 | O97: Sponsor #4 | P97: (Bye)
A99: 20:30:00 | C99: court 1 | E99: Sponsor #2 | F99: Sponsor #6 | K99: 20:30:00 | M99: court 1 | O99: Sponsor #1 | P99: Sponsor #4 | U99: 21:00:00 | W99: court 1
C100: court 2 | E100: Sponsor #5 | F100: Sponsor #3 | M100: court 2 | O100: Sponsor #3 | P100: Sponsor #5 | W100: court 2
C101: court 3 | E101: Sponsor #1 | F101: Sponsor #4 | O101: Sponsor #2 | P101: (Bye)
A103: 21:30:00 | C103: court 1 | E103: Championship | K103: 21:30:00 | M103: court 1 | O103: Sponsor #4 | P103: Sponsor #2
M104: court 2 | O104: Sponsor #5 | P104: (the Winner of the A and C game)
A108: Springdale Combined Schedule (C, D, and Sponsor Divisions) | G108: Score
D109: Division | E109: HOME | F109: AWAY | G109: W | H109: L | I109: Winner | J109: Pt Diff
B110: 06:00:00 | C110: court 1 | D110: C | E110: SARC- Unprotected Sets | F110: SARC- Sets on the Beach | J110: =G110-H110 -> 0
C111: court 2 | D111: C | E111: SARC- I'd Hit That | F111: HG- Swingrays | J111: =G111-H111 -> 0
C112: court 3 | D112: D | E112: SARC- Mizfits | F112: SARC- Mojo Risin | J112: 0
C113: court 4 | D113: D | E113: SARC- Here for Beer | F113: GS- Rhymes with Stupid | J113: 0
B114: 06:30:00 | C114: court 1 | E114: Sponsor #1 | F114: Sponsor #2 | J114: 0
C115: court 2 | D115: C | E115: SARC- Notorious D.I.G. | F115: GS- El Toro's Revenge | J115: 0
C116: court 3 | D116: D | E116: SARC- Good Bumps, Nice Sets | F116: CSTC- Sand in Strange Places | J116: 0
C117: court 4 | D117: D | E117: SARC- Raleigh Brawl | F117: CSTC- Volley Llamas | J117: 0
B118: 07:00:00 | C118: court 1 | D118: C | E118: SARC- Dirt Devils | F118: LKP- Casual Sets | J118: 0
C119: court 2 | D119: C | E119: GS- El Toro's Revenge | F119: SARC- I'd Hit That | J119: 0
C120: court 3 | D120: D | E120: SARC- Mizfits | F120: GS- Rhymes with Stupid | J120: 0
C121: court 4 | D121: D | E121: SARC- Here for Beer | F121: SARC- Mojo Risin | J121: 0
B122: 07:30:00 | C122: court 1 | E122: Sponsor #1 | F122: Sponsor #2 | J122: 0
C123: court 2 | D123: C | E123: SARC- Sets on the Beach | F123: SARC- Dirt Devils | J123: 0
C124: court 3 | D124: D | E124: SARC- Good Bumps, Nice Sets | F124: CSTC- Volley Llamas | J124: 0
C125: court 4 | D125: D | E125: SARC- Raleigh Brawl | F125: CSTC- Sand in Strange Places | J125: 0
B126: 08:00:00 | C126: court 1 | D126: C | E126: LKP- Casual Sets | F126: SARC- Unprotected Sets | J126: 0
C127: court 2 | D127: C | E127: HG- Swingrays | F127: SARC- Notorious D.I.G. | J127: 0
C128: court 3 | D128: D | E128: CSTC- Volley Llamas | F128: SARC- Here for Beer | J128: 0
C129: court 4 | D129: D | E129: CSTC- Sand in Strange Places | F129: SARC- Mizfits | J129: 0
B130: 08:30:00 | C130: court 1 | E130: Sponsor #1 | F130: Sponsor #2 | J130: 0
C131: court 2 | D131: D | E131: GS- Rhymes with Stupid | F131: SARC- Raleigh Brawl | J131: 0
C132: court 3 | D132: C | E132: SARC- Sets on the Beach | F132: SARC- I'd Hit That | J132: 0
C133: court 4 | D133: C | E133: GS- El Toro's Revenge | F133: SARC- Dirt Devils | J133: 0
B134: 09:00:00 | C134: court 1 | D134: D | E134: SARC- Mojo Risin | F134: SARC- Good Bumps, Nice Sets | J134: 0
C135: court 2 | D135: D | E135: CSTC- Volley Llamas | F135: SARC- Mizfits | J135: 0
C136: court 3 | D136: C | E136: HG- Swingrays | F136: SARC- Unprotected Sets | J136: 0
C137: court 4 | D137: C | E137: LKP- Casual Sets | F137: SARC- Notorious D.I.G. | J137: 0
B138: 09:30:00 | C138: court 1 | D138: D | E138: CSTC- Sand in Strange Places | F138: SARC- Here for Beer | J138: 0
C139: court 2 | D139: D | E139: SARC- Mojo Risin | F139: SARC- Raleigh Brawl | J139: 0
C140: court 3 | D140: C | E140: SARC- Dirt Devils | F140: HG- Swingrays | J140: 0
C141: court 4 | D141: C | E141: SARC- I'd Hit That | F141: LKP- Casual Sets | J141: 0
B142: 10:00:00 | C142: court 1 | D142: C | E142: SARC- Notorious D.I.G. | F142: SARC- Sets on the Beach | J142: 0
C143: court 2 | D143: C | E143: SARC- Unprotected Sets | F143: GS- El Toro's Revenge | J143: 0
C144: court 3 | D144: D | E144: GS- Rhymes with Stupid | F144: SARC- Good Bumps, Nice Sets | J144: 0
C145: court 4 | J145: 0

Sheet NIGHT THREE
A1: SARC Red- 1st Vertical Bracket Cross-section of Divisions | G1: Score | M1: RESULTS- After Night Three
E2: HOME | F2: AWAY | G2: W | H2: L | I2: Winner | J2: Pt Diff | L2: Division | M2: 2017 Teams | N2: Win | O2: Loss | P2: . | Q2: PT DIFF | S2: Teams on SARC Red Courts | X2: Team | Y2: No Break | Z2: 30 min | AA2: 60 min | AD2: ct 1 | AE2: ct 2
A3: 1 | B3: 06:00:00 | C3: court 1 | E3: CSTC- Spikological Warfare | F3: SARC- I'd Hit That | J3: =G3-H3 -> 0 | L3: A | M3: GS- Sand Gators | N3: =COUNTIF('Night ONE'!I$3:I$50,M3)+COUNTIF('NIGHT TWO'!I$3:I$149,M3)+COUNTIF(I$3:I$81,M3) -> 0 | O3: =11-N3 -> 11 | Q3: 26 | S3: CSTC- Spikological Warfare | X3: 1 | Y3: 1 | AA3: 2 | AC3: 1 | AD3: 2 | AE3: 2
A4: 2 | C4: court 3 | E4: SARC- Good Bumps, Nice Sets | F4: SARC- $et for Life | J4: =G4-H4 -> 0 | L4: A | M4: LKP- Will Play for Sets | N4: =COUNTIF('Night ONE'!I$3:I$50,M4)+COUNTIF('NIGHT TWO'!I$3:I$149,M4)+COUNTIF(I$3:I$81,M4) -> 0 | O4: 11 | Q4: 44 | S4: SARC- Raleigh Brawl | X4: 2 | Y4: 1 | Z4: 1 | AA4: 1 | AC4: 2 | AD4: 2 | AE4: 2
A5: 3 | B5: 06:30:00 | C5: court 1 | E5: SARC- Raleigh Brawl | F5: SARC- Dirt Devils | J5: 0 | L5: A | M5: LKP- Air Vectors | N5: =COUNTIF('Night ONE'!I$3:I$50,M5)+COUNTIF('NIGHT TWO'!I$3:I$149,M5)+COUNTIF(I$3:I$81,M5) -> 0 | O5: 11 | Q5: 56 | S5: SARC- Sand Diggers | X5: 9 | Y5: 1 | Z5: 2 | AC5: 9 | AD5: 2 | AE5: 2
A6: 4 | C6: court 3 | E6: SO- Kiss My Ace | F6: CSTC- Spikological Warfare | J6: 0 | L6: A | M6: LKP- Pass It Around | N6: =COUNTIF('Night ONE'!I$3:I$50,M6)+COUNTIF('NIGHT TWO'!I$3:I$149,M6)+COUNTIF(I$3:I$81,M6) -> 0 | O6: 11 | Q6: -68 | S6: SARC- Good Bumps, Nice Sets | X6: 10 | Y6: 1 | Z6: 1 | AA6: 1 | AC6: 10 | AD6: 2 | AE6: 2
A7: 5 | B7: 07:00:00 | C7: court 1 | E7: SARC- $et for Life | F7: SARC- Sand Diggers | J7: 0 | L7: A | M7: SO- Kiss My Ace | N7: =COUNTIF('Night ONE'!I$3:I$50,M7)+COUNTIF('NIGHT TWO'!I$3:I$149,M7)+COUNTIF(I$3:I$81,M7) -> 0 | O7: 11 | Q7: -15 | S7: SARC- I'd Hit That | X7: 17 | Y7: 1 | Z7: 1 | AA7: 1 | AC7: 17 | AD7: 2 | AE7: 2
A8: 6 | C8: court 3 | E8: SARC- I'd Hit That | F8: SARC- Raleigh Brawl | J8: 0 | L8: A | M8: SARC- $et for Life | N8: =COUNTIF('Night ONE'!I$3:I$50,M8)+COUNTIF('NIGHT TWO'!I$3:I$149,M8)+COUNTIF(I$3:I$81,M8) -> 0 | O8: 11 | Q8: 56 | S8: SO- Kiss My Ace | X8: 18 | Z8: 3 | AC8: 18 | AD8: 2 | AE8: 2
A9: 7 | B9: 07:30:00 | C9: court 1 | E9: SARC- Dirt Devils | F9: SARC- Good Bumps, Nice Sets | J9: 0 | L9: A | M9: NR- Six Pack Attack | N9: =COUNTIF('Night ONE'!I$3:I$50,M9)+COUNTIF('NIGHT TWO'!I$3:I$149,M9)+COUNTIF(I$3:I$81,M9) -> 0 | O9: =11-N9 -> 11 | Q9: -10 | S9: SARC- Dirt Devils | X9: 25 | Y9: 1 | Z9: 2 | AC9: 25 | AD9: 2 | AE9: 2
A10: 8 | C10: court 3 | E10: SO- Kiss My Ace | F10: SARC- I'd Hit That | J10: 0 | L10: A | M10: SARC- Volleywood | N10: =COUNTIF('Night ONE'!I$3:I$50,M10)+COUNTIF('NIGHT TWO'!I$3:I$149,M10)+COUNTIF(I$3:I$81,M10) -> 0 | O10: 11 | Q10: 105 | S10: SARC- $et for Life | X10: 26 | Z10: 3 | AC10: 26 | AD10: 2 | AE10: 2
A11: 9 | B11: 08:00:00 | C11: court 1 | E11: CSTC- Spikological Warfare | F11: SARC- $et for Life | J11: 0 | L11: B | M11: CSTC- Spikological Warfare | N11: =COUNTIF('Night ONE'!I$3:I$50,M11)+COUNTIF('NIGHT TWO'!I$3:I$149,M11)+COUNTIF(I$3:I$81,M11) -> 0 | O11: 11 | Q11: 72 | AD11: =SUM(AD3:AD10) -> 16 | AE11: =SUM(AE3:AE10) -> 16
A12: 10 | C12: court 3 | E12: SARC- Sand Diggers | F12: SARC- Good Bumps, Nice Sets | J12: 0 | L12: B | M12: LKP- Block You Like a Hurricane | N12: =COUNTIF('Night ONE'!I$3:I$50,M12)+COUNTIF('NIGHT TWO'!I$3:I$149,M12)+COUNTIF(I$3:I$81,M12) -> 0 | O12: 11 | Q12: 18
A13: 11 | B13: 08:30:00 | C13: court 1 | E13: SARC- Raleigh Brawl | F13: SO- Kiss My Ace | J13: 0 | L13: B | M13: GS- Vicious & Delicious | N13: =COUNTIF('Night ONE'!I$3:I$50,M13)+COUNTIF('NIGHT TWO'!I$3:I$149,M13)+COUNTIF(I$3:I$81,M13) -> 0 | O13: 11 | Q13: 13
A14: 12 | C14: court 3 | E14: SARC- Sand Diggers | F14: SARC- Dirt Devils | J14: 0 | L14: B | M14: NR- Hit That Thang | N14: =COUNTIF('Night ONE'!I$3:I$50,M14)+COUNTIF('NIGHT TWO'!I$3:I$149,M14)+COUNTIF(I$3:I$81,M14) -> 0 | O14: 11 | Q14: -71
A15: 13 | B15: 09:00:00 | C15: court 1 | E15: SARC- I'd Hit That | F15: SARC- Good Bumps, Nice Sets | J15: 0 | L15: B | M15: GS- Where's My Beaches At? | N15: =COUNTIF('Night ONE'!I$3:I$50,M15)+COUNTIF('NIGHT TWO'!I$3:I$149,M15)+COUNTIF(I$3:I$81,M15) -> 0 | O15: 11 | Q15: -56
A16: 14 | C16: court 3 | E16: SARC- $et for Life | F16: SARC- Dirt Devils | J16: 0 | L16: B | M16: LKP- Bumpn' Uglies | N16: =COUNTIF('Night ONE'!I$3:I$50,M16)+COUNTIF('NIGHT TWO'!I$3:I$149,M16)+COUNTIF(I$3:I$81,M16) -> 0 | O16: 11 | Q16: 15
A17: 15 | B17: 09:30:00 | C17: court 1 | E17: SO- Kiss My Ace | F17: SARC- Sand Diggers | J17: 0 | L17: B | M17: SARC- Sand Diggers | N17: =COUNTIF('Night ONE'!I$3:I$50,M17)+COUNTIF('NIGHT TWO'!I$3:I$149,M17)+COUNTIF(I$3:I$81,M17) -> 0 | O17: 11 | Q17: 45
A18: 16 | C18: court 3 | E18: CSTC- Spikological Warfare | F18: SARC- Raleigh Brawl | J18: 0 | L18: B | M18: SO- Team Kona | N18: =COUNTIF('Night ONE'!I$3:I$50,M18)+COUNTIF('NIGHT TWO'!I$3:I$149,M18)+COUNTIF(I$3:I$81,M18) -> 0 | O18: 11 | Q18: 42
L19: C | M19: SARC- Dirt Devils | N19: =COUNTIF('Night ONE'!I$3:I$50,M19)+COUNTIF('NIGHT TWO'!I$3:I$149,M19)+COUNTIF(I$3:I$81,M19) -> 0 | O19: 11 | Q19: 7
L20: C | M20: SARC- I'd Hit That | N20: =COUNTIF('Night ONE'!I$3:I$50,M20)+COUNTIF('NIGHT TWO'!I$3:I$149,M20)+COUNTIF(I$3:I$81,M20) -> 0 | O20: 11 | Q20: 21
L21: C | M21: LKP- Casual Sets | N21: =COUNTIF('Night ONE'!I$3:I$50,M21)+COUNTIF('NIGHT TWO'!I$3:I$149,M21)+COUNTIF(I$3:I$81,M21) -> 0 | O21: 11 | Q21: 0
A22: SARC Blue- 2nd Vertical Bracket Cross-section of Divisions | G22: Score | L22: C | M22: SARC- Unprotected Sets | N22: =COUNTIF('Night ONE'!I$3:I$50,M22)+COUNTIF('NIGHT TWO'!I$3:I$149,M22)+COUNTIF(I$3:I$81,M22) -> 0 | O22: 11 | Q22: -84
E23: HOME | F23: AWAY | G23: W | H23: L | I23: Winner | J23: Pt Diff | L23: C | M23: SARC- Notorious D.I.G. | N23: =COUNTIF('Night ONE'!I$3:I$50,M23)+COUNTIF('NIGHT TWO'!I$3:I$149,M23)+COUNTIF(I$3:I$81,M23) -> 0 | O23: 11 | Q23: -13 | S23: Teams on SARC Blue Courts
A24: 1 | B24: 06:00:00 | C24: court 2 | E24: NR- Hit That Thang | F24: SARC- Unprotected Sets | J24: =G24-H24 -> 0 | L24: C | M24: SARC- Sets on the Beach | N24: =COUNTIF('Night ONE'!I$3:I$50,M24)+COUNTIF('NIGHT TWO'!I$3:I$149,M24)+COUNTIF(I$3:I$81,M24) -> 0 | O24: 11 | Q24: -87 | S24: NR- Hit That Thang
A25: 2 | C25: court 4 | E25: SARC- Mizfits | F25: LKP- Air Vectors | J25: =G25-H25 -> 0 | L25: C | M25: HG- Swingrays | N25: =COUNTIF('Night ONE'!I$3:I$50,M25)+COUNTIF('NIGHT TWO'!I$3:I$149,M25)+COUNTIF(I$3:I$81,M25) -> 0 | O25: 11 | Q25: 52 | S25: SARC- Here for Beer
A26: 3 | B26: 06:30:00 | C26: court 2 | E26: SARC- Here for Beer | F26: SARC- Notorious D.I.G. | J26: 0 | L26: C | M26: GS- El Toro's Revenge | N26: =COUNTIF('Night ONE'!I$3:I$50,M26)+COUNTIF('NIGHT TWO'!I$3:I$149,M26)+COUNTIF(I$3:I$81,M26) -> 0 | O26: 11 | Q26: 33 | S26: SO- Team Kona
A27: 4 | C27: court 4 | E27: SARC- Volleywood | F27: NR- Hit That Thang | J27: 0 | L27: D | M27: SARC- Good Bumps, Nice Sets | N27: =COUNTIF('Night ONE'!I$3:I$50,M27)+COUNTIF('NIGHT TWO'!I$3:I$149,M27)+COUNTIF(I$3:I$81,M27) -> 0 | O27: 11 | Q27: -44 | S27: SARC- Mizfits
A28: 5 | B28: 07:00:00 | C28: court 2 | E28: LKP- Air Vectors | F28: SO- Team Kona | J28: 0 | L28: D | M28: CSTC- Sand in Strange Places | N28: =COUNTIF('Night ONE'!I$3:I$50,M28)+COUNTIF('NIGHT TWO'!I$3:I$149,M28)+COUNTIF(I$3:I$81,M28) -> 0 | O28: 11 | Q28: -39 | S28: SARC- Unprotected Sets
A29: 6 | C29: court 4 | E29: SARC- Unprotected Sets | F29: SARC- Here for Beer | J29: 0 | L29: D | M29: GS- Rhymes with Stupid | N29: =COUNTIF('Night ONE'!I$3:I$50,M29)+COUNTIF('NIGHT TWO'!I$3:I$149,M29)+COUNTIF(I$3:I$81,M29) -> 0 | O29: 11 | Q29: -101 | S29: SARC- Volleywood
A30: 7 | B30: 07:30:00 | C30: court 2 | E30: SARC- Notorious D.I.G. | F30: SARC- Mizfits | J30: 0 | L30: D | M30: SARC- Mojo Risin | N30: =COUNTIF('Night ONE'!I$3:I$50,M30)+COUNTIF('NIGHT TWO'!I$3:I$149,M30)+COUNTIF(I$3:I$81,M30) -> 0 | O30: 11 | Q30: 40 | S30: SARC- Notorious D.I.G.
A31: 8 | C31: court 4 | E31: SARC- Volleywood | F31: SARC- Unprotected Sets | J31: 0 | L31: D | M31: SARC- Raleigh Brawl | N31: =COUNTIF('Night ONE'!I$3:I$50,M31)+COUNTIF('NIGHT TWO'!I$3:I$149,M31)+COUNTIF(I$3:I$81,M31) -> 0 | O31: 11 | Q31: -110 | S31: LKP- Air Vectors
A32: 9 | B32: 08:00:00 | C32: court 2 | E32: NR- Hit That Thang | F32: LKP- Air Vectors | J32: 0 | L32: D | M32: SARC- Mizfits | N32: =COUNTIF('Night ONE'!I$3:I$50,M32)+COUNTIF('NIGHT TWO'!I$3:I$149,M32)+COUNTIF(I$3:I$81,M32) -> 0 | O32: 11 | Q32: 21
A33: 10 | C33: court 4 | E33: SO- Team Kona | F33: SARC- Mizfits | J33: 0 | L33: D | M33: CSTC- Volley Llamas | N33: =COUNTIF('Night ONE'!I$3:I$50,M33)+COUNTIF('NIGHT TWO'!I$3:I$149,M33)+COUNTIF(I$3:I$81,M33) -> 0 | O33: 11 | Q33: -21
A34: 11 | B34: 08:30:00 | C34: court 2 | E34: SARC- Here for Beer | F34: SARC- Volleywood | J34: 0 | L34: D | M34: SARC- Here for Beer | N34: =COUNTIF('Night ONE'!I$3:I$50,M34)+COUNTIF('NIGHT TWO'!I$3:I$149,M34)+COUNTIF(I$3:I$81,M34) -> 0 | O34: 11 | Q34: 53
A35: 12 | C35: court 4 | E35: SO- Team Kona | F35: SARC- Notorious D.I.G. | J35: 0
A36: 13 | B36: 09:00:00 | C36: court 2 | E36: SARC- Unprotected Sets | F36: SARC- Mizfits | J36: 0
A37: 14 | C37: court 4 | E37: LKP- Air Vectors | F37: SARC- Notorious D.I.G. | J37: 0
A38: 15 | B38: 09:30:00 | C38: court 2 | E38: SARC- Volleywood | F38: SO- Team Kona | J38: 0
A39: 16 | C39: court 4 | E39: NR- Hit That Thang | F39: SARC- Here for Beer | J39: 0
A43: LAKE PARK- 3rd Vertical Bracket Cross-section of Divisions | G43: Score
E44: HOME | F44: AWAY | G44: W | H44: L | I44: Winner | J44: Pt Diff
A45: 1 | B45: 06:00:00 | C45: court 1 | E45: LKP- Block You Like a Hurricane | F45: LKP- Casual Sets | J45: =G45-H45 -> 0 | S45: Teams at Lake Park
A46: 2 | C46: court 2 | E46: CSTC- Sand in Strange Places | F46: LKP- Pass It Around | J46: =G46-H46 -> 0 | S46: LKP- Block You Like a Hurricane
A47: 3 | B47: 06:30:00 | C47: court 1 | E47: CSTC- Volley Llamas | F47: HG- Swingrays | J47: 0 | S47: CSTC- Volley Llamas
A48: 4 | C48: court 2 | E48: LKP- Will Play for Sets | F48: LKP- Block You Like a Hurricane | J48: 0 | S48: LKP- Bumpn' Uglies
A49: 5 | B49: 07:00:00 | C49: court 1 | E49: LKP- Pass It Around | F49: LKP- Bumpn' Uglies | J49: 0 | S49: CSTC- Sand in Strange Places
A50: 6 | C50: court 2 | E50: LKP- Casual Sets | F50: CSTC- Volley Llamas | J50: 0 | S50: LKP- Casual Sets
A51: 7 | B51: 07:30:00 | C51: court 1 | E51: HG- Swingrays | F51: CSTC- Sand in Strange Places | J51: 0 | S51: LKP- Will Play for Sets
A52: 8 | C52: court 2 | E52: LKP- Will Play for Sets | F52: LKP- Casual Sets | J52: 0 | S52: HG- Swingrays
A53: 9 | B53: 08:00:00 | C53: court 1 | E53: LKP- Block You Like a Hurricane | F53: LKP- Pass It Around | J53: 0 | S53: LKP- Pass It Around
A54: 10 | C54: court 2 | E54: LKP- Bumpn' Uglies | F54: CSTC- Sand in Strange Places | J54: 0
A55: 11 | B55: 08:30:00 | C55: court 1 | E55: CSTC- Volley Llamas | F55: LKP- Will Play for Sets | J55: 0
A56: 12 | C56: court 2 | E56: LKP- Bumpn' Uglies | F56: HG- Swingrays | J56: 0
A57: 13 | B57: 09:00:00 | C57: court 1 | E57: LKP- Casual Sets | F57: CSTC- Sand in Strange Places | J57: 0
A58: 14 | C58: court 2 | E58: LKP- Pass It Around | F58: HG- Swingrays | J58: 0
A59: 15 | B59: 09:30:00 | C59: court 1 | E59: LKP- Will Play for Sets | F59: LKP- Bumpn' Uglies | J59: 0
A60: 16 | C60: court 2 | E60: LKP- Block You Like a Hurricane | F60: CSTC- Volley Llamas | J60: 0
A64: GREYSTONE- 4th Vertical Bracket Cross-section of Divisions | G64: Score
E65: HOME | F65: AWAY | G65: W | H65: L | I65: Winner | J65: Pt Diff | S65: Teams at Greystone
A66: 1 | B66: 06:00:00 | C66: court 1 | E66: GS- Where's My Beaches At? | F66: GS- El Toro's Revenge | J66: =G66-H66 -> 0 | S66: GS- Where's My Beaches At?
A67: 2 | C67: court 2 | E67: SARC- Mojo Risin | F67: NR- Six Pack Attack | J67: =G67-H67 -> 0 | S67: GS- Rhymes with Stupid
A68: 3 | B68: 06:30:00 | C68: court 1 | E68: GS- Rhymes with Stupid | F68: SARC- Sets on the Beach | J68: 0 | S68: GS- Vicious & Delicious
A69: 4 | C69: court 2 | E69: GS- Sand Gators | F69: GS- Where's My Beaches At? | J69: 0 | S69: SARC- Mojo Risin
A70: 5 | B70: 07:00:00 | C70: court 1 | E70: NR- Six Pack Attack | F70: GS- Vicious & Delicious | J70: 0 | S70: GS- El Toro's Revenge
A71: 6 | C71: court 2 | E71: GS- El Toro's Revenge | F71: GS- Rhymes with Stupid | J71: 0 | S71: GS- Sand Gators
A72: 7 | B72: 07:30:00 | C72: court 1 | E72: SARC- Sets on the Beach | F72: SARC- Mojo Risin | J72: 0 | S72: SARC- Sets on the Beach
A73: 8 | C73: court 2 | E73: GS- Sand Gators | F73: GS- El Toro's Revenge | J73: 0 | S73: NR- Six Pack Attack
A74: 9 | B74: 08:00:00 | C74: court 1 | E74: GS- Where's My Beaches At? | F74: NR- Six Pack Attack | J74: 0
A75: 10 | C75: court 2 | E75: GS- Vicious & Delicious | F75: SARC- Mojo Risin | J75: 0
A76: 11 | B76: 08:30:00 | C76: court 1 | E76: GS- Rhymes with Stupid | F76: GS- Sand Gators | J76: 0
A77: 12 | C77: court 2 | E77: GS- Vicious & Delicious | F77: SARC- Sets on the Beach | J77: 0
A78: 13 | B78: 09:00:00 | C78: court 1 | E78: GS- El Toro's Revenge | F78: SARC- Mojo Risin | J78: 0
A79: 14 | C79: court 2 | E79: NR- Six Pack Attack | F79: SARC- Sets on the Beach | J79: 0
A80: 15 | B80: 09:30:00 | C80: court 1 | E80: GS- Sand Gators | F80: GS- Vicious & Delicious | J80: 0
A81: 16 | C81: court 2 | E81: GS- Where's My Beaches At? | F81: GS- Rhymes with Stupid | J81: 0

Sheet Championship Night
B1: Growler Championship Night- 32 Team Single Elimination | J1: Final Seeding | P1: Raffle | Q1: Final 4 | S1: Championship
B4: 17:30:00 | D4: 18:00:00 | F4: 18:30:00 | H4: 19:00:00 | J4: 19:30:00 | L4: 20:00:00 | N4: 20:30:00 | P4: 21:00:00 | Q4: 21:30:00 | S4: 22:00:00
P5: Break for Announce-ments and Raffle
E6: 1
F7: 1
E8: 32
F9: court 1 | J9: 17
A10: 16
B11: 2
A12: 17 | J12: court 1
B13: court 4 | N13: 25
G14: 8
H15: 3
G16: 25
H17: court 4 | L17: 18
C18: 9 | N18: court 1
D19: 4
C20: 24 | L20: court 4
D21: court 1 | Q21: 29
E22: 4
F23: 5
E24: 29
F25: court 4 | J25: 19
A26: 13
B27: 6
A28: 20 | J28: court 4
B29: court 1 | N29: 26
G30: 5 | Q30: court 1
H31: 7
G32: 28
H33: court 1 | L33: 20
C34: 12 | N34: court 4
D35: 8
C36: 21 | L36: court 1
D37: court 4
E38: 2 | S38: 31
F39: 9
E40: 31
F41: court 2 | J41: 21
A42: 15
B43: 10
A44: 18 | J44: court 2
B45: court 3 | N45: 27
G46: 7
H47: 11
G48: 26
H49: court 3 | L49: 22
C50: 10 | N50: court 2
D51: 12
C52: 23 | L52: court 3
D53: court 2 | Q53: 30
E54: 3
F55: 13 | S55: court 1
E56: 30
F57: court 3 | J57: 23
A58: 14
B59: 14
A60: 19 | J60: court 3
B61: court 2 | N61: 28
G62: 6 | Q62: court 2
H63: 15
G64: 27
H65: court 2 | L65: 24
C66: 11 | N66: court 3
D67: 16
C68: 22 | L68: court 2
D69: court 3

Sheet GPI Ranking-Seeding (hidden)
A1: 2017 | B1: Final SEEDING | C1: #1- Strength of Schedule | E1: #2- NUMBER OF WINS | H1: #3- POINT DIFFERENTIAL | K1: #4- MONEY FOR ST BALDRICKS | Q1: Point Differential
A2: ='Team SB Donations'!#REF! ->  | B2: Method for Determining Points >>>>>>>>>>>>>>> | C2: Points | D2: A= 8 pts, B=5 pts, C= 2 pts, D= 0 pts | F2: Points | G2: = # of Wins | H2: Ranking | J2: =(32-Rank)/7 | K2: Ranking | L2: =(32-Rank)/5 | M2: Total Pts from Wins, Pt Diff, Tier Diff, Money raised | R2: Division | S2: Teams | T2: Win | U2: Loss | V2: . | W2: PT DIFF | X2: Rank
B3: Point Variance | D3: 8 | G3: 11 | J3: 4.4 | L3: 6 | S3: LKP- Air Vectors | W3: =VLOOKUP(S3,'NIGHT THREE'!M$3:Q$34,5,FALSE) -> 56 | X3: 1
A4: Ranking | B4: Teams | C4: Team Level | D4: Points for Division Difficulty | E4: Win | F4: Loss | G4: Points from W/L | H4: POINT DIFFERENTIAL | I4: Pt Diff Rank | J4: Points from Pt Diff | K4: Rank- Money Raised for St Baldricks or Sponsorship | L4: POINTS for Money Raised for St Baldricks or Sponsorship | M4: TOTAL POINTS | S4: SARC- $et for Life | W4: =VLOOKUP(S4,'NIGHT THREE'!M$3:Q$34,5,FALSE) -> 56 | X4: 2
A5: 1 | B5: LKP- Air Vectors | C5: A | D5: =IF(C5="A",8,IF(C5="B",5,IF(C5="C",2,0))) -> 8 | E5: =VLOOKUP(B5,'NIGHT THREE'!M$3:N$34,2,FALSE) -> 0 | F5: =VLOOKUP(B5,'NIGHT THREE'!M$3:O$34,3,FALSE) -> 11 | G5: =E5 -> 0 | H5: =VLOOKUP(B5,'NIGHT THREE'!M$3:Q$34,5,FALSE) -> 56 | I5: =VLOOKUP($B5,S$3:X$34,6,FALSE) -> 1 | J5: =(32-I5)/7 -> 4.428571429 | K5: =VLOOKUP($B5,'Team SB Donations'!B$5:L$36,11,FALSE) -> 16 | L5: =(32-K5)/5 -> 3.2 | M5: =G5+J5+D5+L5 -> 15.62857143 | S5: CSTC- Spikological Warfare | W5: =VLOOKUP(S5,'NIGHT THREE'!M$3:Q$34,5,FALSE) -> 72 | X5: 3
A6: 2 | B6: LKP- Pass It Around | C6: A | D6: 8 | E6: =VLOOKUP(B6,'NIGHT THREE'!M$3:N$34,2,FALSE) -> 0 | F6: =VLOOKUP(B6,'NIGHT THREE'!M$3:O$34,3,FALSE) -> 11 | G6: 0 | H6: =VLOOKUP(B6,'NIGHT THREE'!M$3:Q$34,5,FALSE) -> -68 | I6: 8 | J6: 3.428571429 | K6: =VLOOKUP($B6,'Team SB Donations'!B$5:L$36,11,FALSE) -> 13 | L6: 3.8 | M6: 15.22857143 | S6: SARC- Volleywood | W6: =VLOOKUP(S6,'NIGHT THREE'!M$3:Q$34,5,FALSE) -> 105 | X6: 4
A7: 3 | B7: SARC- Volleywood | C7: A | D7: 8 | E7: =VLOOKUP(B7,'NIGHT THREE'!M$3:N$34,2,FALSE) -> 0 | F7: =VLOOKUP(B7,'NIGHT THREE'!M$3:O$34,3,FALSE) -> 11 | G7: 0 | H7: =VLOOKUP(B7,'NIGHT THREE'!M$3:Q$34,5,FALSE) -> 105 | I7: 4 | J7: 4 | K7: =VLOOKUP($B7,'Team SB Donations'!B$5:L$36,11,FALSE) -> 24 | L7: 1.6 | M7: 13.6 | S7: SARC- Dirt Devils | W7: =VLOOKUP(S7,'NIGHT THREE'!M$3:Q$34,5,FALSE) -> 7 | X7: 5
A8: 4 | B8: GS- El Toro's Revenge | C8: D | D8: 0 | E8: =VLOOKUP(B8,'NIGHT THREE'!M$3:N$34,2,FALSE) -> 0 | F8: =VLOOKUP(B8,'NIGHT THREE'!M$3:O$34,3,FALSE) -> 11 | G8: 0 | H8: =VLOOKUP(B8,'NIGHT THREE'!M$3:Q$34,5,FALSE) -> 33 | I8: 10 | J8: 3.142857143 | K8: =VLOOKUP($B8,'Team SB Donations'!B$5:L$36,11,FALSE) -> 1 | L8: 6.2 | M8: 9.342857143 | N8: El TORO #4 seed | S8: SO- Team Kona | W8: =VLOOKUP(S8,'NIGHT THREE'!M$3:Q$34,5,FALSE) -> 42 | X8: 6
A9: 5 | B9: CSTC- Spikological Warfare | C9: A | D9: 8 | E9: =VLOOKUP(B9,'NIGHT THREE'!M$3:N$34,2,FALSE) -> 0 | F9: =VLOOKUP(B9,'NIGHT THREE'!M$3:O$34,3,FALSE) -> 11 | G9: 0 | H9: =VLOOKUP(B9,'NIGHT THREE'!M$3:Q$34,5,FALSE) -> 72 | I9: 3 | J9: 4.142857143 | K9: =VLOOKUP($B9,'Team SB Donations'!B$5:L$36,11,FALSE) -> 15 | L9: 3.4 | M9: 15.54285714 | S9: LKP- Block You Like a Hurricane | W9: =VLOOKUP(S9,'NIGHT THREE'!M$3:Q$34,5,FALSE) -> 18 | X9: 7
A10: 6 | B10: GS- Sand Gators | C10: B | D10: 5 | E10: =VLOOKUP(B10,'NIGHT THREE'!M$3:N$34,2,FALSE) -> 0 | F10: =VLOOKUP(B10,'NIGHT THREE'!M$3:O$34,3,FALSE) -> 11 | G10: 0 | H10: =VLOOKUP(B10,'NIGHT THREE'!M$3:Q$34,5,FALSE) -> 26 | I10: 9 | J10: 3.285714286 | K10: =VLOOKUP($B10,'Team SB Donations'!B$5:L$36,11,FALSE) -> 6 | L10: 5.2 | M10: 13.48571429 | S10: LKP- Pass It Around | W10: =VLOOKUP(S10,'NIGHT THREE'!M$3:Q$34,5,FALSE) -> -68 | X10: 8
A11: 7 | B11: SO- Kiss My Ace | C11: A | D11: 8 | E11: =VLOOKUP(B11,'NIGHT THREE'!M$3:N$34,2,FALSE) -> 0 | F11: =VLOOKUP(B11,'NIGHT THREE'!M$3:O$34,3,FALSE) -> 11 | G11: 0 | H11: =VLOOKUP(B11,'NIGHT THREE'!M$3:Q$34,5,FALSE) -> -15 | I11: 20 | J11: 1.714285714 | K11: =VLOOKUP($B11,'Team SB Donations'!B$5:L$36,11,FALSE) -> 4 | L11: 5.6 | M11: 15.31428571 | S11: GS- Sand Gators | W11: =VLOOKUP(S11,'NIGHT THREE'!M$3:Q$34,5,FALSE) -> 26 | X11: 9
A12: 8 | B12: GS- Vicious & Delicious | C12: B | D12: 5 | E12: =VLOOKUP(B12,'NIGHT THREE'!M$3:N$34,2,FALSE) -> 0 | F12: =VLOOKUP(B12,'NIGHT THREE'!M$3:O$34,3,FALSE) -> 11 | G12: 0 | H12: =VLOOKUP(B12,'NIGHT THREE'!M$3:Q$34,5,FALSE) -> 13 | I12: 16 | J12: 2.285714286 | K12: =VLOOKUP($B12,'Team SB Donations'!B$5:L$36,11,FALSE) -> 3 | L12: 5.8 | M12: 13.08571429 | S12: GS- El Toro's Revenge | W12: =VLOOKUP(S12,'NIGHT THREE'!M$3:Q$34,5,FALSE) -> 33 | X12: 10
A13: 9 | B13: SARC- $et for Life | C13: B | D13: 5 | E13: =VLOOKUP(B13,'NIGHT THREE'!M$3:N$34,2,FALSE) -> 0 | F13: =VLOOKUP(B13,'NIGHT THREE'!M$3:O$34,3,FALSE) -> 11 | G13: 0 | H13: =VLOOKUP(B13,'NIGHT THREE'!M$3:Q$34,5,FALSE) -> 56 | I13: 2 | J13: 4.285714286 | K13: =VLOOKUP($B13,'Team SB Donations'!B$5:L$36,11,FALSE) -> 29 | L13: 0.6 | M13: 9.885714286 | S13: SARC- Sets on the Beach | W13: =VLOOKUP(S13,'NIGHT THREE'!M$3:Q$34,5,FALSE) -> -87 | X13: 11
A14: 10 | B14: LKP- Will Play for Sets | C14: A | D14: 8 | E14: =VLOOKUP(B14,'NIGHT THREE'!M$3:N$34,2,FALSE) -> 0 | F14: =VLOOKUP(B14,'NIGHT THREE'!M$3:O$34,3,FALSE) -> 11 | G14: 0 | H14: =VLOOKUP(B14,'NIGHT THREE'!M$3:Q$34,5,FALSE) -> 44 | I14: 12 | J14: 2.857142857 | K14: =VLOOKUP($B14,'Team SB Donations'!B$5:L$36,11,FALSE) -> 27 | L14: 1 | M14: 11.85714286 | S14: LKP- Will Play for Sets | W14: =VLOOKUP(S14,'NIGHT THREE'!M$3:Q$34,5,FALSE) -> 44 | X14: 12
A15: 11 | B15: SARC- Sand Diggers | C15: B | D15: 5 | E15: =VLOOKUP(B15,'NIGHT THREE'!M$3:N$34,2,FALSE) -> 0 | F15: =VLOOKUP(B15,'NIGHT THREE'!M$3:O$34,3,FALSE) -> 11 | G15: 0 | H15: =VLOOKUP(B15,'NIGHT THREE'!M$3:Q$34,5,FALSE) -> 45 | I15: 15 | J15: 2.428571429 | K15: =VLOOKUP($B15,'Team SB Donations'!B$5:L$36,11,FALSE) -> 2 | L15: 6 | M15: 13.42857143 | S15: LKP- Casual Sets | W15: =VLOOKUP(S15,'NIGHT THREE'!M$3:Q$34,5,FALSE) -> 0 | X15: 13
A16: 12 | B16: LKP- Block You Like a Hurricane | C16: B | D16: 5 | E16: =VLOOKUP(B16,'NIGHT THREE'!M$3:N$34,2,FALSE) -> 0 | F16: =VLOOKUP(B16,'NIGHT THREE'!M$3:O$34,3,FALSE) -> 11 | G16: 0 | H16: =VLOOKUP(B16,'NIGHT THREE'!M$3:Q$34,5,FALSE) -> 18 | I16: 7 | J16: 3.571428571 | K16: =VLOOKUP($B16,'Team SB Donations'!B$5:L$36,11,FALSE) -> 26 | L16: 1.2 | M16: 9.771428571 | S16: SARC- Here for Beer | W16: =VLOOKUP(S16,'NIGHT THREE'!M$3:Q$34,5,FALSE) -> 53 | X16: 14
A17: 13 | B17: SO- Team Kona | C17: C | D17: 2 | E17: =VLOOKUP(B17,'NIGHT THREE'!M$3:N$34,2,FALSE) -> 0 | F17: =VLOOKUP(B17,'NIGHT THREE'!M$3:O$34,3,FALSE) -> 11 | G17: 0 | H17: =VLOOKUP(B17,'NIGHT THREE'!M$3:Q$34,5,FALSE) -> 42 | I17: 6 | J17: 3.714285714 | K17: =VLOOKUP($B17,'Team SB Donations'!B$5:L$36,11,FALSE) -> 9 | L17: 4.6 | M17: 10.31428571 | S17: SARC- Sand Diggers | W17: =VLOOKUP(S17,'NIGHT THREE'!M$3:Q$34,5,FALSE) -> 45 | X17: 15
A18: 14 | B18: NR- Six Pack Attack | C18: A | D18: 8 | E18: =VLOOKUP(B18,'NIGHT THREE'!M$3:N$34,2,FALSE) -> 0 | F18: =VLOOKUP(B18,'NIGHT THREE'!M$3:O$34,3,FALSE) -> 11 | G18: 0 | H18: =VLOOKUP(B18,'NIGHT THREE'!M$3:Q$34,5,FALSE) -> -10 | I18: 22 | J18: 1.428571429 | K18: =VLOOKUP($B18,'Team SB Donations'!B$5:L$36,11,FALSE) -> 21 | L18: 2.2 | M18: 11.62857143 | S18: GS- Vicious & Delicious | W18: =VLOOKUP(S18,'NIGHT THREE'!M$3:Q$34,5,FALSE) -> 13 | X18: 16
A19: 15 | B19: SARC- Sets on the Beach | C19: C | D19: 2 | E19: =VLOOKUP(B19,'NIGHT THREE'!M$3:N$34,2,FALSE) -> 0 | F19: =VLOOKUP(B19,'NIGHT THREE'!M$3:O$34,3,FALSE) -> 11 | G19: 0 | H19: =VLOOKUP(B19,'NIGHT THREE'!M$3:Q$34,5,FALSE) -> -87 | I19: 11 | J19: 3 | K19: =VLOOKUP($B19,'Team SB Donations'!B$5:L$36,11,FALSE) -> 12 | L19: 4 | M19: 9 | S19: LKP- Bumpn' Uglies | W19: =VLOOKUP(S19,'NIGHT THREE'!M$3:Q$34,5,FALSE) -> 15 | X19: 17
A20: 16 | B20: LKP- Casual Sets | C20: C | D20: 2 | E20: =VLOOKUP(B20,'NIGHT THREE'!M$3:N$34,2,FALSE) -> 0 | F20: =VLOOKUP(B20,'NIGHT THREE'!M$3:O$34,3,FALSE) -> 11 | G20: 0 | H20: =VLOOKUP(B20,'NIGHT THREE'!M$3:Q$34,5,FALSE) -> 0 | I20: 13 | J20: 2.714285714 | K20: =VLOOKUP($B20,'Team SB Donations'!B$5:L$36,11,FALSE) -> 17 | L20: 3 | M20: 7.714285714 | S20: SARC- I'd Hit That | W20: =VLOOKUP(S20,'NIGHT THREE'!M$3:Q$34,5,FALSE) -> 21 | X20: 18
A21: 17 | B21: SARC- Here for Beer | C21: D | D21: 0 | E21: =VLOOKUP(B21,'NIGHT THREE'!M$3:N$34,2,FALSE) -> 0 | F21: =VLOOKUP(B21,'NIGHT THREE'!M$3:O$34,3,FALSE) -> 11 | G21: 0 | H21: =VLOOKUP(B21,'NIGHT THREE'!M$3:Q$34,5,FALSE) -> 53 | I21: 14 | J21: 2.571428571 | K21: =VLOOKUP($B21,'Team SB Donations'!B$5:L$36,11,FALSE) -> 7 | L21: 5 | M21: 7.571428571 | S21: GS- Where's My Beaches At? | W21: =VLOOKUP(S21,'NIGHT THREE'!M$3:Q$34,5,FALSE) -> -56 | X21: 19
A22: 18 | B22: GS- Where's My Beaches At? | C22: C | D22: 2 | E22: =VLOOKUP(B22,'NIGHT THREE'!M$3:N$34,2,FALSE) -> 0 | F22: =VLOOKUP(B22,'NIGHT THREE'!M$3:O$34,3,FALSE) -> 11 | G22: 0 | H22: =VLOOKUP(B22,'NIGHT THREE'!M$3:Q$34,5,FALSE) -> -56 | I22: 19 | J22: 1.857142857 | K22: =VLOOKUP($B22,'Team SB Donations'!B$5:L$36,11,FALSE) -> 19 | L22: 2.6 | M22: 6.457142857 | S22: SO- Kiss My Ace | W22: =VLOOKUP(S22,'NIGHT THREE'!M$3:Q$34,5,FALSE) -> -15 | X22: 20
A23: 19 | B23: LKP- Bumpn' Uglies | C23: B | D23: 5 | E23: =VLOOKUP(B23,'NIGHT THREE'!M$3:N$34,2,FALSE) -> 0 | F23: =VLOOKUP(B23,'NIGHT THREE'!M$3:O$34,3,FALSE) -> 11 | G23: 0 | H23: =VLOOKUP(B23,'NIGHT THREE'!M$3:Q$34,5,FALSE) -> 15 | I23: 17 | J23: 2.142857143 | K23: =VLOOKUP($B23,'Team SB Donations'!B$5:L$36,11,FALSE) -> 31 | L23: 0.2 | M23: 7.342857143 | S23: HG- Swingrays | W23: =VLOOKUP(S23,'NIGHT THREE'!M$3:Q$34,5,FALSE) -> 52 | X23: 21
A24: 20 | B24: NR- Hit That Thang | C24: A | D24: 8 | E24: =VLOOKUP(B24,'NIGHT THREE'!M$3:N$34,2,FALSE) -> 0 | F24: =VLOOKUP(B24,'NIGHT THREE'!M$3:O$34,3,FALSE) -> 11 | G24: 0 | H24: =VLOOKUP(B24,'NIGHT THREE'!M$3:Q$34,5,FALSE) -> -71 | I24: 27 | J24: 0.7142857143 | K24: =VLOOKUP($B24,'Team SB Donations'!B$5:L$36,11,FALSE) -> 25 | L24: 1.4 | M24: 10.11428571 | S24: NR- Six Pack Attack | W24: =VLOOKUP(S24,'NIGHT THREE'!M$3:Q$34,5,FALSE) -> -10 | X24: 22
A25: 21 | B25: SARC- Notorious D.I.G. | C25: B | D25: 5 | E25: =VLOOKUP(B25,'NIGHT THREE'!M$3:N$34,2,FALSE) -> 0 | F25: =VLOOKUP(B25,'NIGHT THREE'!M$3:O$34,3,FALSE) -> 11 | G25: 0 | H25: =VLOOKUP(B25,'NIGHT THREE'!M$3:Q$34,5,FALSE) -> -13 | I25: 26 | J25: 0.8571428571 | K25: =VLOOKUP($B25,'Team SB Donations'!B$5:L$36,11,FALSE) -> 11 | L25: 4.2 | M25: 10.05714286 | S25: SARC- Mojo Risin | W25: =VLOOKUP(S25,'NIGHT THREE'!M$3:Q$34,5,FALSE) -> 40 | X25: 23
A26: 22 | B26: SARC- Dirt Devils | C26: D | D26: 0 | E26: =VLOOKUP(B26,'NIGHT THREE'!M$3:N$34,2,FALSE) -> 0 | F26: =VLOOKUP(B26,'NIGHT THREE'!M$3:O$34,3,FALSE) -> 11 | G26: 0 | H26: =VLOOKUP(B26,'NIGHT THREE'!M$3:Q$34,5,FALSE) -> 7 | I26: 5 | J26: 3.857142857 | K26: =VLOOKUP($B26,'Team SB Donations'!B$5:L$36,11,FALSE) -> 22 | L26: 2 | M26: 5.857142857 | S26: CSTC- Sand in Strange Places | W26: =VLOOKUP(S26,'NIGHT THREE'!M$3:Q$34,5,FALSE) -> -39 | X26: 24
A27: 23 | B27: SARC- Unprotected Sets | C27: B | D27: 5 | E27: =VLOOKUP(B27,'NIGHT THREE'!M$3:N$34,2,FALSE) -> 0 | F27: =VLOOKUP(B27,'NIGHT THREE'!M$3:O$34,3,FALSE) -> 11 | G27: 0 | H27: =VLOOKUP(B27,'NIGHT THREE'!M$3:Q$34,5,FALSE) -> -84 | I27: 28 | J27: 0.5714285714 | K27: =VLOOKUP($B27,'Team SB Donations'!B$5:L$36,11,FALSE) -> 18 | L27: 2.8 | M27: 8.371428571 | S27: SARC- Raleigh Brawl | W27: =VLOOKUP(S27,'NIGHT THREE'!M$3:Q$34,5,FALSE) -> -110 | X27: 25
A28: 24 | B28: SARC- Mojo Risin | C28: D | D28: 0 | E28: =VLOOKUP(B28,'NIGHT THREE'!M$3:N$34,2,FALSE) -> 0 | F28: =VLOOKUP(B28,'NIGHT THREE'!M$3:O$34,3,FALSE) -> 11 | G28: 0 | H28: =VLOOKUP(B28,'NIGHT THREE'!M$3:Q$34,5,FALSE) -> 40 | I28: 23 | J28: 1.285714286 | K28: =VLOOKUP($B28,'Team SB Donations'!B$5:L$36,11,FALSE) -> 8 | L28: 4.8 | M28: 6.085714286 | S28: SARC- Notorious D.I.G. | W28: =VLOOKUP(S28,'NIGHT THREE'!M$3:Q$34,5,FALSE) -> -13 | X28: 26
A29: 25 | B29: SARC- I'd Hit That | C29: C | D29: 2 | E29: =VLOOKUP(B29,'NIGHT THREE'!M$3:N$34,2,FALSE) -> 0 | F29: =VLOOKUP(B29,'NIGHT THREE'!M$3:O$34,3,FALSE) -> 11 | G29: 0 | H29: =VLOOKUP(B29,'NIGHT THREE'!M$3:Q$34,5,FALSE) -> 21 | I29: 18 | J29: 2 | K29: =VLOOKUP($B29,'Team SB Donations'!B$5:L$36,11,FALSE) -> 32 | L29: 0 | M29: 4 | S29: NR- Hit That Thang | W29: =VLOOKUP(S29,'NIGHT THREE'!M$3:Q$34,5,FALSE) -> -71 | X29: 27
A30: 26 | B30: HG- Swingrays | C30: C | D30: 2 | E30: =VLOOKUP(B30,'NIGHT THREE'!M$3:N$34,2,FALSE) -> 0 | F30: =VLOOKUP(B30,'NIGHT THREE'!M$3:O$34,3,FALSE) -> 11 | G30: 0 | H30: =VLOOKUP(B30,'NIGHT THREE'!M$3:Q$34,5,FALSE) -> 52 | I30: 21 | J30: 1.571428571 | K30: =VLOOKUP($B30,'Team SB Donations'!B$5:L$36,11,FALSE) -> 28 | L30: 0.8 | M30: 4.371428571 | S30: SARC- Unprotected Sets | W30: =VLOOKUP(S30,'NIGHT THREE'!M$3:Q$34,5,FALSE) -> -84 | X30: 28
A31: 27 | B31: CSTC- Volley Llamas | C31: C | D31: 2 | E31: =VLOOKUP(B31,'NIGHT THREE'!M$3:N$34,2,FALSE) -> 0 | F31: =VLOOKUP(B31,'NIGHT THREE'!M$3:O$34,3,FALSE) -> 11 | G31: 0 | H31: =VLOOKUP(B31,'NIGHT THREE'!M$3:Q$34,5,FALSE) -> -21 | I31: 30 | J31: 0.2857142857 | K31: =VLOOKUP($B31,'Team SB Donations'!B$5:L$36,11,FALSE) -> 10 | L31: 4.4 | M31: 6.685714286 | S31: SARC- Good Bumps, Nice Sets | W31: =VLOOKUP(S31,'NIGHT THREE'!M$3:Q$34,5,FALSE) -> -44 | X31: 29
A32: 28 | B32: SARC- Raleigh Brawl | C32: D | D32: 0 | E32: =VLOOKUP(B32,'NIGHT THREE'!M$3:N$34,2,FALSE) -> 0 | F32: =VLOOKUP(B32,'NIGHT THREE'!M$3:O$34,3,FALSE) -> 11 | G32: 0 | H32: =VLOOKUP(B32,'NIGHT THREE'!M$3:Q$34,5,FALSE) -> -110 | I32: 25 | J32: 1 | K32: =VLOOKUP($B32,'Team SB Donations'!B$5:L$36,11,FALSE) -> 20 | L32: 2.4 | M32: 3.4 | S32: CSTC- Volley Llamas | W32: =VLOOKUP(S32,'NIGHT THREE'!M$3:Q$34,5,FALSE) -> -21 | X32: 30
A33: 29 | B33: CSTC- Sand in Strange Places | C33: D | D33: 0 | E33: =VLOOKUP(B33,'NIGHT THREE'!M$3:N$34,2,FALSE) -> 0 | F33: =VLOOKUP(B33,'NIGHT THREE'!M$3:O$34,3,FALSE) -> 11 | G33: 0 | H33: =VLOOKUP(B33,'NIGHT THREE'!M$3:Q$34,5,FALSE) -> -39 | I33: 24 | J33: 1.142857143 | K33: =VLOOKUP($B33,'Team SB Donations'!B$5:L$36,11,FALSE) -> 30 | L33: 0.4 | M33: 1.542857143 | S33: GS- Rhymes with Stupid | W33: =VLOOKUP(S33,'NIGHT THREE'!M$3:Q$34,5,FALSE) -> -101 | X33: 31
A34: 30 | B34: SARC- Mizfits | C34: D | D34: 0 | E34: =VLOOKUP(B34,'NIGHT THREE'!M$3:N$34,2,FALSE) -> 0 | F34: =VLOOKUP(B34,'NIGHT THREE'!M$3:O$34,3,FALSE) -> 11 | G34: 0 | H34: =VLOOKUP(B34,'NIGHT THREE'!M$3:Q$34,5,FALSE) -> 21 | I34: 32 | J34: 0 | K34: =VLOOKUP($B34,'Team SB Donations'!B$5:L$36,11,FALSE) -> 5 | L34: 5.4 | M34: 5.4 | S34: SARC- Mizfits | W34: =VLOOKUP(S34,'NIGHT THREE'!M$3:Q$34,5,FALSE) -> 21 | X34: 32
A35: 31 | B35: SARC- Good Bumps, Nice Sets | C35: C | D35: 2 | E35: =VLOOKUP(B35,'NIGHT THREE'!M$3:N$34,2,FALSE) -> 0 | F35: =VLOOKUP(B35,'NIGHT THREE'!M$3:O$34,3,FALSE) -> 11 | G35: 0 | H35: =VLOOKUP(B35,'NIGHT THREE'!M$3:Q$34,5,FALSE) -> -44 | I35: 29 | J35: 0.4285714286 | K35: =VLOOKUP($B35,'Team SB Donations'!B$5:L$36,11,FALSE) -> 14 | L35: 3.6 | M35: 6.028571429
A36: 32 | B36: GS- Rhymes with Stupid | C36: D | D36: 0 | E36: =VLOOKUP(B36,'NIGHT THREE'!M$3:N$34,2,FALSE) -> 0 | F36: =VLOOKUP(B36,'NIGHT THREE'!M$3:O$34,3,FALSE) -> 11 | G36: 0 | H36: =VLOOKUP(B36,'NIGHT THREE'!M$3:Q$34,5,FALSE) -> -101 | I36: 31 | J36: 0.1428571429 | K36: =VLOOKUP($B36,'Team SB Donations'!B$5:L$36,11,FALSE) -> 23 | L36: 1.8 | M36: 1.942857143

Sheet Team SB Donations (hidden)
O1: St Baldrick's Download Team Report
B2: This Ranking for Team Seed - Snapshot on 8/19 (see below for updated Team earnings) | O2: 2018
B3: 1 | C3: 2 | D3: 3 | E3: 4 | F3: 5 | G3: 6 | H3: 7 | I3: 8 | J3: 9 | K3: 10 | L3: 11 | O3: SB report downloaded 8/19 6pm
B4: Schedule Name | C4: SB- Team Name | D4: # of Participants | E4: Team Captain Full Name | H4: Amount Raised on SB Site | I4: Sponsorships Cash earned- Adjustments | J4: Cash Sponsors acquired (checks to SARC), other SB credits, or Adjustments | K4: Total- Team Earnings | L4: Growler SB Team Rank | O4: Registration Date | P4: Team Name | Q4: # of Participants | R4: Team Captain Full Name | S4: Team Captain Display Name | T4: Team Fundraising Goal | U4: Amount Raised
B5: GS- El Toro's Revenge | C5: El toro | E5: Joe Cockerham | H5: =VLOOKUP(C5,P$5:U$36,6,FALSE) -> 18970.01 | I5: -7762 | J5: Apply 50 % of El Toro to V & D (Lindsay/Brooke) | K5: =SUM(H5:I5) -> 11208.01 | L5: 1 | O5: 2018-05-08 | P5: Air Vectors | Q5: 4 | R5: Lawrence R Lee | S5: Lawrence Lee | T5: 300 | U5: 925
B6: SARC- Sand Diggers | C6: Sand Diggers | E6: John M Marks | H6: 6849 | I6: 3350 | J6: Alvis Dent $250 , Wells Dent $500, RabonDaily $250, D Jacobs-lights 1600, Campbell 750 | K6: 10199 | L6: 2 | O6: 2018-05-10 | P6: Bump'n Uglies | Q6: 1 | R6: Kenneth Muller | S6: Kenneth Muller | T6: 1000 | U6: 500
B7: GS- Vicious & Delicious | C7: Vicious and Delicious | E7: Michael D Braga | H7: 300 | I7: 8762 | J7: Apply 50 % of El Toro to V & D (Lindsay/Brooke), SouthernResearch $1000 check sent to SB | K7: 9062 | L7: 3 | O7: 2018-05-10 | P7: Hit That Thang | Q7: 2 | R7: Steve Hamilton | S7: Steve Hamilton | T7: 1000 | U7: 735
B8: SO- Kiss My Ace | C8: Kiss My Ace! | E8: Olaf Schroeder | H8: 5805 | K8: 5805 | L8: 4 | O8: 2018-05-10 | P8: El toro | Q8: 6 | R8: Joe Cockerham | S8: Joe Cockerham | T8: 500 | U8: 18970.01
B9: SARC- Mizfits | C9: Mizfits | E9: Jay W Cupstid | H9: 2478 | I9: 2350 | J9: BTM Landscape (350), Alvis Dent 250, Cornerstone $1500, SMVT 250 | K9: 4828 | L9: 5 | O9: 2018-05-10 | P9: Raleigh Brawl | Q9: 1 | R9: Rob S Caulfield | S9: Rob Caulfield | T9: 500 | U9: 0
B10: GS- Sand Gators | C10: Sand Gators | E10: Jeff Sharp | H10: 2090 | I10: 1200 | J10: NC Sp Hosp ($250), Northstate (S200), Courtyard ($250). One Off clothing ($500) | K10: 3290 | L10: 6 | O10: 2018-05-11 | P10: Casual Sets | Q10: 1 | R10: Dave Radcliffe | S10: Dave Radcliffe | T10: 500 | U10: 100
B11: SARC- Here for Beer | C11: Here for Beer | E11: Bill Green | H11: 2601 | I11: 500 | J11: 250 Edge, 250 Greentech | K11: 3101 | L11: 7 | O11: 2018-05-14 | P11: Team Kona | Q11: 4 | R11: J maierhofer | S11: Joe Maierhofer | T11: 2500 | U11: 1666
B12: SARC- Mojo Risin | C12: Mojo Risin' | E12: Beth Munoz | H12: 3091 | K12: 3091 | L12: 8 | O12: 2018-05-15 | P12: Sand Gators | Q12: 1 | R12: Jeffrey Sharp | S12: Jeffrey Sharp | T12: 1000 | U12: 2090
B13: SO- Team Kona | C13: Team Kona | E13: Joe Maierhofer | H13: 1666 | I13: 500 | J13: SB check from fund raiser | K13: 2166 | L13: 9 | O13: 2018-05-17 | P13: Vicious and Delicious | Q13: 1 | R13: Jeff Owens | S13: Jeff Owens | T13: 400 | U13: 300
B14: CSTC- Volley Llamas | C14: Volley Llamas | E14: Eric Yount | H14: 2020 | K14: 2020 | L14: 10 | O14: 2018-05-20 | P14: Mojo Risin' | Q14: 6 | R14: Ray Gonzalez | S14: Ray Gonzalez | T14: 3000 | U14: 3091
B15: SARC- Notorious D.I.G. | C15: Notorious D.I.G. | E15: Matt Vaughn | H15: 200 | I15: 1750 | J15: Bedlam (1500), SMVT 250 | K15: 1950 | L15: 11 | O15: 2018-05-21 | P15: Block You Like a Hurricane | Q15: 5 | R15: James Perotti | S15: James Perotti | T15: 700 | U15: 850
B16: SARC- Sets on the Beach | C16: Sets on the Beach | E16: Jennifer H Daft | H16: 1930 | K16: 1930 | L16: 12 | O16: 2018-05-21 | P16: Good Bumps, Nice Sets | Q16: 2 | R16: Haleigh McCollum | S16: Haleigh McCollum | T16: 1500 | U16: 725
B17: LKP- Pass It Around | C17: Pass it Around | E17: Gregg Klofenstine | H17: 1795 | K17: 1795 | L17: 13 | O17: 2018-05-21 | P17: $et For Life | Q17: 1 | R17: Dan J Schaefer | S17: Dan Schaefer | T17: 500 | U17: 630
B18: SARC- Good Bumps, Nice Sets | C18: Good Bumps, Nice Sets | E18: Haleigh McCollum | H18: 725 | I18: 1050 | J18: Nutri Lawn ($250) , H&E Equip ($800) | K18: 1775 | L18: 14 | O18: 2018-05-21 | P18: Volleywood | Q18: 7 | R18: Jason P Grieco | S18: Jason Grieco | T18: 2000 | U18: 1125
B19: CSTC- Spikological Warfare | C19: Spikological Warfare | E19: Burt Driscoll | H19: 1740 | K19: 1740 | L19: 15 | O19: 2018-05-22 | P19: Where's My Beaches At? | Q19: 3 | R19: Marshall A Lamb | S19: Where's My Beaches At? | T19: 500 | U19: 1370
B20: LKP- Air Vectors | C20: Air vectors | E20: Lawrence R Lee | H20: 925 | I20: 764.94 | J20: Bradsher | K20: 1689.94 | L20: 16 | O20: 2018-05-22 | P20: Pass It Around | Q20: 4 | R20: Gregg Klofenstine | S20: Gregg Klofenstine | T20: 100 | U20: 1795
B21: LKP- Casual Sets | C21: Casual Sets | E21: Dave Radcliffe | H21: 100 | I21: 1500 | J21: Fidelity | K21: 1600 | L21: 17 | O21: 2018-05-25 | P21: Swingrays | Q21: 1 | R21: Glenn Lucas | S21: Glenn Lucas | T21: 1000 | U21: 1050
B22: SARC- Unprotected Sets | C22: Unprotected Sets | E22: Ryan D Oxendine | H22: 0 | I22: 1500 | J22: Oxendine-Barnes attorneys | K22: 1500 | L22: 18 | O22: 2018-05-27 | P22: Mizfits | Q22: 3 | R22: Jay W Cupstid | S22: Jay Cupstid | T22: 2000 | U22: 2478
B23: GS- Where's My Beaches At? | C23: Where's My Beaches At? | E23: Marshall A Lamb | H23: 1370 | K23: 1370 | L23: 19 | O23: 2018-05-29 | P23: Here for Beer | Q23: 6 | R23: Alden P Blake | S23: Alden Blake | T23: 1500 | U23: 2601
B24: SARC- Raleigh Brawl | C24: Raleigh Brawl | E24: Rob S Caulfield | H24: 0 | I24: 1250 | J24: All about Aesthetics, Wise donation | K24: 1250 | L24: 20 | O24: 2018-05-29 | P24: Sets on the Beach | Q24: 8 | R24: Jennifer H Daft | S24: Jennifer Daft | T24: 300 | U24: 1930
B25: NR- Six Pack Attack | C25: Six Pack Attack | E25: Robby A White | H25: 800 | I25: 387.2 | J25: Frito Lay | K25: 1187.2 | L25: 21 | O25: 2018-05-29 | P25: Sand Diggers | Q25: 5 | R25: John M Marks | S25: John Marks | T25: 5000 | U25: 6849
B26: SARC- Dirt Devils | C26: Dirt Devils | E26: Beth Farrell | H26: 70 | I26: 1100 | J26: Campbell Ortho 750, Alvis Dent 250, Trimat 100 | K26: 1170 | L26: 22 | O26: 2018-05-30 | P26: Dirt Devils | Q26: 1 | R26: Beth Farrell | S26: Beth Farrell | T26: 1500 | U26: 70
B27: GS- Rhymes with Stupid | C27: Rhymes With Stupid | E27: Greg Wait | H27: 1170 | K27: 1170 | L27: 23 | O27: 2018-05-31 | P27: Kiss My Ace! | Q27: 3 | R27: Olaf Schroeder | S27: Olaf Schroeder | T27: 300 | U27: 5805
B28: SARC- Volleywood | C28: Volleywood | E28: Jason P Grieco | H28: 1125 | K28: 1125 | L28: 24 | O28: 2018-05-31 | P28: Spikological Warfare | Q28: 5 | R28: Daniel Dulaney | S28: Daniel Dulaney | T28: 300 | U28: 1740
B29: NR- Hit That Thang | C29: Hit That Thang | E29: Stephen Hamilton | H29: 735 | I29: 387.2 | J29: Frito Lay | K29: 1122.2 | L29: 25 | O29: 2018-05-31 | P29: Notorious D.I.G. | Q29: 5 | R29: Matt Vaughn | S29: Matt Vaughn | T29: 500 | U29: 200
B30: LKP- Block You Like a Hurricane | C30: Block You Like A Hurricane | E30: James Perotti | H30: 850 | I30: 250 | J30: Stew-Absolute Clean | K30: 1100 | L30: 26 | O30: 2018-05-31 | P30: Rhymes With Stupid | Q30: 7 | R30: Greg Wait | S30: Greg Wait | T30: 1200 | U30: 1170
B31: LKP- Will Play for Sets | C31: Will Play For Sets | E31: John D Allen | H31: 100 | I31: 1000 | J31: funds in route to SB via Bright funds/Cisco | K31: 1100 | L31: 27 | O31: 2018-05-31 | P31: Six Pack Attack | Q31: 5 | R31: Robby A White | S31: Robby White | T31: 800 | U31: 800
B32: HG- Swingrays | C32: Swingrays | E32: Glenn Lucas | H32: 1050 | K32: 1050 | L32: 28 | O32: 2018-06-01 | P32: Will Play For Sets | Q32: 3 | R32: John D Allen | S32: John Allen | T32: 500 | U32: 100
B33: SARC- $et for Life | C33: $et For Life | E33: Dan J Schaefer | H33: 630 | I33: 250 | J33: Lexus- 250 | K33: 880 | L33: 29 | O33: 2018-06-01 | P33: Concrete Feet - Crabtree Swim Club | Q33: 3 | R33: Chad W Collins | S33: Chad Collins | T33: 1000 | U33: 780
B34: CSTC- Sand in Strange Places | C34: Concrete Feet - Crabtree Swim Club | E34: John J Willey | H34: 780 | K34: 780 | L34: 30 | O34: 2018-06-02 | P34: I'd Hit That | Q34: 2 | R34: Holly C Mabe | S34: Holly Mabe | T34: 1000 | U34: 200
B35: LKP- Bumpn' Uglies | C35: Bump'n Uglies | E35: Kenneth Muller | H35: 500 | I35: 250 | J35: PRM Filtration | K35: 750 | L35: 31 | O35: 2018-06-11 | P35: Unprotected Sets | Q35: 1 | R35: Ryan D Oxendine | S35: Ryan Oxendine | T35: 1000 | U35: 0
B36: SARC- I'd Hit That | C36: I'd Hit That | E36: Holly C Mabe | H36: 200 | K36: 200 | L36: 32 | O36: 2018-07-10 | P36: Volley Llamas | Q36: 6 | R36: Andrew J Mueller | S36: Andrew Mueller | T36: 1000 | U36: 2020
B40: Team SB Standing as of 5/5/19
B41: Schedule Name | C41: SB- Team Name | D41: # Players on team | E41: Team Captain Full Name | H41: Amount Raised on SB Site | I41: Sponsorships Cash earned- Adjustments | J41: Cash Sponsors acquired (checks to SARC), other SB credits, or Adjustments | K41: Total- Team Earnings | L41: Growler SB Team Rank | M41: SB ave per player | O41: Registration Date | P41: Team Name | Q41: # of Participants | R41: Team Captain Full Name | S41: Team Captain Display Name | T41: Team Fundraising Goal | U41: Amount Raised | Y41: team | Z41: captain | AA41: Division | AB41: Count of players
B42: GS- El Toro's Revenge | C42: El toro | D42: =VLOOKUP(C42,Y$42:AB$73,4,FALSE) -> 9 | E42: Joe Cockerham | H42: =VLOOKUP(C42,P$42:U$73,6,FALSE) -> 30446.17 | I42: -7762 | J42: Apply 50 % of El Toro to V & D (Lindsay/Brooke) | K42: =SUM(H42:I42) -> 22684.17 | L42: 1 | M42: =K42/D42 -> 2520.463333 | O42: 2018-05-10 | P42: El toro | Q42: 6 | R42: Joe Cockerham | S42: Joe Cockerham | T42: 500 | U42: 30446.17 | Y42: Concrete Feet | Z42: Chad Collins | AA42: D | AB42: 8
B43: SARC- Sand Diggers | C43: Sand Diggers | D43: =VLOOKUP(C43,Y$42:AB$73,4,FALSE) -> 13 | E43: John M Marks | H43: 8049 | I43: 3350 | J43: Alvis Dent $250 , Wells Dent $500, RabonDaily $250, D Jacobs-lights 1600, Campbell 750 | K43: 11399 | L43: 2 | M43: 876.8461538 | O43: 2018-05-29 | P43: Sand Diggers | Q43: 5 | R43: John M Marks | S43: John Marks | T43: 5000 | U43: 8049 | Y43: Spikological Warfare | Z43: Daniel Dulaney | AA43: A | AB43: 8
B44: GS- Vicious & Delicious | C44: Vicious and Delicious | D44: 7 | E44: Michael D Braga | H44: 300 | I44: 8762 | J44: Apply 50 % of El Toro to V & D (Lindsay/Brooke), SouthernResearch $1000 check sent to SB | K44: 9062 | L44: 3 | M44: 1294.571429 | O44: 2018-05-31 | P44: Kiss My Ace! | Q44: 3 | R44: Olaf Schroeder | S44: Olaf Schroeder | T44: 300 | U44: 6215 | Y44: Volley Llamas | Z44: An(Drew) Mueller | AA44: C | AB44: 8
B45: SARC- Mizfits | C45: Mizfits | D45: =VLOOKUP(C45,Y$42:AB$73,4,FALSE) -> 19 | E45: Jay W Cupstid | H45: 5531.17 | I45: 2350 | J45: BTM Landscape (350), Alvis Dent 250, Cornerstone $1500, SMVT 250 | K45: 7881.17 | L45: 4 | M45: 414.7984211 | O45: 2018-05-27 | P45: Mizfits | Q45: 3 | R45: Jay W Cupstid | S45: Jay Cupstid | T45: 2000 | U45: 5531.17 | Y45: Rhymes With Stupid | Z45: Greg Wait | AA45: D | AB45: 7
B46: SO- Kiss My Ace | C46: Kiss My Ace! | D46: 8 | E46: Olaf Schroeder | H46: 6215 | K46: 6215 | L46: 5 | M46: 776.875 | O46: 2018-05-20 | P46: Mojo Risin' | Q46: 6 | R46: Ray Gonzalez | S46: Ray Gonzalez | T46: 3000 | U46: 3662 | Y46: Vicious & Delicious | Z46: Jeff Owens | AA46: B | AB46: 7
B47: SARC- Mojo Risin | C47: Mojo Risin' | D47: 9 | E47: Beth Munoz | H47: 3662 | K47: 3662 | L47: 6 | M47: 406.8888889 | O47: 2018-05-29 | P47: Here for Beer | Q47: 6 | R47: Alden P Blake | S47: Alden Blake | T47: 1500 | U47: 2611 | Y47: Where's My Beaches At? | Z47: Marshall Lamb | AA47: C | AB47: 8
B48: GS- Sand Gators | C48: Sand Gators | D48: 7 | E48: Jeff Sharp | H48: 2440 | I48: 1200 | J48: NC Sp Hosp ($250), Northstate (S200), Courtyard ($250). One Off clothing ($500) | K48: 3640 | L48: 7 | M48: 520 | O48: 2018-05-15 | P48: Sand Gators | Q48: 1 | R48: Jeffrey Sharp | S48: Jeffrey Sharp | T48: 1000 | U48: 2440 | Y48: El Toro | Z48: Joe Cockerham | AA48: D | AB48: 9
B49: SARC- Raleigh Brawl | C49: Raleigh Brawl | D49: 15 | E49: Rob S Caulfield | H49: 2000 | I49: 1250 | J49: All about Aesthetics, Wise donation | K49: 3250 | L49: 8 | M49: 216.6666667 | O49: 2018-05-14 | P49: Team Kona | Q49: 4 | R49: Joe Maierhofer | S49: Joe Maierhofer | T49: 2500 | U49: 2298 | Y49: Sand Gators | Z49: Jeff Sharp | AA49: B | AB49: 7
B50: SARC- Here for Beer | C50: Here for Beer | D50: 15 | E50: Bill Green | H50: 2611 | I50: 500 | J50: 250 Edge, 250 Greentech | K50: 3111 | L50: 9 | M50: 207.4 | O50: 2018-06-01 | P50: Concrete Feet - Crabtree Swim Club | Q50: 3 | R50: Chad W Collins | S50: Chad Collins | T50: 1000 | U50: 2213 | Y50: Swingrays | Z50: Glenn Lucas | AA50: C | AB50: 9
B51: SO- Team Kona | C51: Team Kona | D51: 12 | E51: Joe Maierhofer | H51: 2298 | I51: 500 | J51: SB check from fund raiser | K51: 2798 | L51: 10 | M51: 233.1666667 | O51: 2018-05-29 | P51: Sets on the Beach | Q51: 8 | R51: Jennifer H Daft | S51: Jennifer Daft | T51: 300 | U51: 2151 | Y51: Bump'n Uglies | Z51: Ken Muller | AA51: B | AB51: 7
B52: CSTC- Sand in Strange Places | C52: Concrete Feet - Crabtree Swim Club | D52: 8 | E52: John J Willey | H52: 2213 | K52: 2213 | L52: 11 | M52: 276.625 | O52: 2018-05-22 | P52: Pass It Around | Q52: 4 | R52: Gregg Klofenstine | S52: Gregg Klofenstine | T52: 100 | U52: 2095 | Y52: Air Vectors | Z52: Lawrence Lee | AA52: A | AB52: 7
B53: SARC- Sets on the Beach | C53: Sets on the Beach | D53: =VLOOKUP(C53,Y$42:AB$73,4,FALSE) -> 9 | E53: Jennifer H Daft | H53: 2151 | K53: 2151 | L53: 12 | M53: 239 | O53: 2018-07-10 | P53: Volley Llamas | Q53: 6 | R53: Andrew J Mueller | S53: Andrew Mueller | T53: 1000 | U53: 2070 | Y53: Block You Like a Hurricane | Z53: Jim Perotti | AA53: B | AB53: 7
B54: SARC- Good Bumps, Nice Sets | C54: Good Bumps, Nice Sets | D54: 10 | E54: Haleigh McCollum | H54: 1100 | I54: 1050 | J54: Nutri Lawn ($250) , H&E Equip ($800) | K54: 2150 | L54: 13 | M54: 215 | O54: 2018-05-10 | P54: Raleigh Brawl | Q54: 1 | R54: Rob S Caulfield | S54: Rob Caulfield | T54: 500 | U54: 2000 | Y54: Casual Sets | Z54: DAVE RADCLIFFE | AA54: C | AB54: 6
B55: LKP- Pass It Around | C55: Pass it Around | D55: =VLOOKUP(C55,Y$42:AB$73,4,FALSE) -> 8 | E55: Gregg Klofenstine | H55: 2095 | K55: 2095 | L55: 14 | M55: 261.875 | O55: 2018-05-31 | P55: Spikological Warfare | Q55: 5 | R55: Daniel Dulaney | S55: Daniel Dulaney | T55: 300 | U55: 1740 | Y55: Pass it Around | Z55: Gregg Klofenstine | AA55: A | AB55: 8
B56: CSTC- Volley Llamas | C56: Volley Llamas | D56: =VLOOKUP(C56,Y$42:AB$73,4,FALSE) -> 8 | E56: Eric Yount | H56: 2070 | K56: 2070 | L56: 15 | M56: 258.75 | O56: 2018-05-21 | P56: Volleywood | Q56: 7 | R56: Jason P Grieco | S56: Jason Grieco | T56: 2000 | U56: 1651 | Y56: Will Play for Sets | Z56: John Allen | AA56: A | AB56: 6
B57: SARC- Notorious D.I.G. | C57: Notorious D.I.G. | D57: 10 | E57: Matt Vaughn | H57: 200 | I57: 1750 | J57: Bedlam (1500), SMVT 250 | K57: 1950 | L57: 16 | M57: 195 | O57: 2018-05-10 | P57: Hit That Thang | Q57: 2 | R57: Steve Hamilton | S57: Steve Hamilton | T57: 1000 | U57: 1501.75 | Y57: Hit That Thang | Z57: Steve Hamilton | AA57: A | AB57: 9
B58: NR- Hit That Thang | C58: Hit That Thang | D58: =VLOOKUP(C58,Y$42:AB$73,4,FALSE) -> 9 | E58: Stephen Hamilton | H58: 1501.75 | I58: 387.2 | J58: Frito Lay | K58: 1888.95 | L58: 17 | M58: 209.8833333 | O58: 2018-05-22 | P58: Where's My Beaches At? | Q58: 3 | R58: Marshall A Lamb | S58: Where's My Beaches At? | T58: 500 | U58: 1470 | Y58: Six Pack Attack | Z58: Robby White | AA58: A | AB58: 8
B59: LKP- Air Vectors | C59: Air vectors | D59: 7 | E59: Lawrence R Lee | H59: 1025 | I59: 764.94 | J59: Bradsher | K59: 1789.94 | L59: 18 | M59: 255.7057143 | O59: 2018-05-31 | P59: Rhymes With Stupid | Q59: 7 | R59: Greg Wait | S59: Greg Wait | T59: 1200 | U59: 1170 | Y59: MOJO RISIN' | Z59: Kyle Gonzalez | AA59: D | AB59: 9
B60: CSTC- Spikological Warfare | C60: Spikological Warfare | D60: 8 | E60: Burt Driscoll | H60: 1740 | K60: 1740 | L60: 19 | M60: 217.5 | O60: 2018-05-21 | P60: Good Bumps, Nice Sets | Q60: 2 | R60: Haleigh McCollum | S60: Haleigh McCollum | T60: 1500 | U60: 1100 | Y60: Notorious DIG | Z60: Matt Vaughn | AA60: B | AB60: 10
B61: SARC- Volleywood | C61: Volleywood | D61: 7 | E61: Jason P Grieco | H61: 1651 | K61: 1651 | L61: 20 | M61: 235.8571429 | O61: 2018-05-25 | P61: Swingrays | Q61: 1 | R61: Glenn Lucas | S61: Glenn Lucas | T61: 1000 | U61: 1050 | Y61: Dirt Devils | Z61: Beth Farrell | AA61: D | AB61: 9
B62: LKP- Casual Sets | C62: Casual Sets | D62: 6 | E62: Dave Radcliffe | H62: 100 | I62: 1500 | J62: Fidelity | K62: 1600 | L62: 21 | M62: 266.6666667 | O62: 2018-05-08 | P62: Air Vectors | Q62: 4 | R62: Lawrence R Lee | S62: Lawrence Lee | T62: 300 | U62: 1025 | Y62: Great Bumps Nice Sets | Z62: Haleigh McCollum | AA62: C | AB62: 10
B63: SARC- Unprotected Sets | C63: Unprotected Sets | D63: 9 | E63: Ryan D Oxendine | H63: 0 | I63: 1500 | J63: Oxendine-Barnes attorneys | K63: 1500 | L63: 22 | M63: 166.6666667 | O63: 2018-06-02 | P63: I'd Hit That | Q63: 2 | R63: Holly C Mabe | S63: Holly Mabe | T63: 1000 | U63: 889.85 | Y63: Here for Beer | Z63: AP Blake | AA63: D | AB63: 15
B64: GS- Where's My Beaches At? | C64: Where's My Beaches At? | D64: 8 | E64: Marshall A Lamb | H64: 1470 | K64: 1470 | L64: 23 | M64: 183.75 | O64: 2018-05-21 | P64: Block You Like a Hurricane | Q64: 5 | R64: James Perotti | S64: James Perotti | T64: 700 | U64: 850 | Y64: I'd Hit That | Z64: Holly Mabe | AA64: B | AB64: 18
B65: SARC- Dirt Devils | C65: Dirt Devils | D65: 9 | E65: Beth Farrell | H65: 120 | I65: 1100 | J65: Campbell Ortho 750, Alvis Dent 250, Trimat 100 | K65: 1220 | L65: 24 | M65: 135.5555556 | O65: 2018-05-31 | P65: Six Pack Attack | Q65: 5 | R65: Robby A White | S65: Robby White | T65: 800 | U65: 800 | Y65: Mizfits | Z65: Jay Cupstid | AA65: D | AB65: 19
B66: NR- Six Pack Attack | C66: Six Pack Attack | D66: 8 | E66: Robby A White | H66: 800 | I66: 387.2 | J66: Frito Lay | K66: 1187.2 | L66: 25 | M66: 148.4 | O66: 2018-05-21 | P66: $et For Life | Q66: 1 | R66: Dan J Schaefer | S66: Dan Schaefer | T66: 500 | U66: 630 | Y66: Raleigh Brawl | Z66: Rob Caulfield | AA66: D | AB66: 15
B67: GS- Rhymes with Stupid | C67: Rhymes With Stupid | D67: 7 | E67: Greg Wait | H67: 1170 | K67: 1170 | L67: 26 | M67: 167.1428571 | O67: 2018-05-10 | P67: Bump'n Uglies | Q67: 1 | R67: Kenneth Muller | S67: Kenneth Muller | T67: 1000 | U67: 625 | Y67: Sand Diggers | Z67: John Marks | AA67: B | AB67: 13
B68: LKP- Will Play for Sets | C68: Will Play For Sets | D68: 6 | E68: John D Allen | H68: 125 | I68: 1000 | J68: funds in route to SB via Bright funds/Cisco | K68: 1125 | L68: 27 | M68: 187.5 | O68: 2018-05-17 | P68: Vicious and Delicious | Q68: 1 | R68: Jeff Owens | S68: Jeff Owens | T68: 400 | U68: 300 | Y68: Sets on the Beach | Z68: Jennifer Daft | AA68: C | AB68: 9
B69: LKP- Block You Like a Hurricane | C69: Block You Like A Hurricane | D69: 7 | E69: James Perotti | H69: 850 | I69: 250 | J69: Stew-Absolute Clean | K69: 1100 | L69: 28 | M69: 157.1428571 | O69: 2018-05-31 | P69: Notorious D.I.G. | Q69: 5 | R69: Matt Vaughn | S69: Matt Vaughn | T69: 500 | U69: 200 | Y69: Unprotected Sets | Z69: Ryan Oxendine | AA69: B | AB69: 9
B70: HG- Swingrays | C70: Swingrays | D70: 9 | E70: Glenn Lucas | H70: 1050 | K70: 1050 | L70: 29 | M70: 116.6666667 | O70: 2018-06-01 | P70: Will Play For Sets | Q70: 3 | R70: John D Allen | S70: John Allen | T70: 500 | U70: 125 | Y70: Volleywood | Z70: Jason Grieco | AA70: A | AB70: 7
B71: SARC- I'd Hit That | C71: I'd Hit That | D71: 18 | E71: Holly C Mabe | H71: 889.85 | K71: 889.85 | L71: 30 | M71: =K71/D71 -> 49.43611111 | O71: 2018-05-30 | P71: Dirt Devils | Q71: 1 | R71: Beth Farrell | S71: Beth Farrell | T71: 1500 | U71: 120 | Y71: $et For Life | Z71: Dan Schaefer | AA71: B | AB71: 8
B72: SARC- $et for Life | C72: $et For Life | D72: 8 | E72: Dan J Schaefer | H72: 630 | I72: 250 | J72: Lexus- 250 | K72: 880 | L72: 31 | M72: =K72/D72 -> 110 | O72: 2018-05-11 | P72: Casual Sets | Q72: 1 | R72: Dave Radcliffe | S72: Dave Radcliffe | T72: 500 | U72: 100 | Y72: Kiss My Ace! | Z72: Olaf Schroeder | AA72: A | AB72: 8
B73: LKP- Bumpn' Uglies | C73: Bump'n Uglies | D73: 7 | E73: Kenneth Muller | H73: 625 | I73: 250 | J73: PRM Filtration | K73: 875 | L73: 32 | M73: =K73/D73 -> 125 | O73: 2018-06-11 | P73: Unprotected Sets | Q73: 1 | R73: Ryan D Oxendine | S73: Ryan Oxendine | T73: 1000 | U73: 0 | Y73: Team Kona | Z73: Brian Tobey | AA73: C | AB73: 12

Sheet Teams
A15: 2018 TEAMS
A16: 1 | B16: 2 | C16: 3 | D16: 4 | E16: 5 | F16: 6 | G16: 7 | H16: 8 | I16: 9 | J16: 10 | K16: 11 | L16: 12 | M16: 13 | N16: 14 | O16: 15 | P16: 16 | Q16: 17 | R16: 18 | S16: 19 | T16: 20
A17: # of Teams | B17: Teams per club | C17: Captain | D17: Club | F17: Team | G17: Division | H17: Team # | I17: Full Name | L17: Team #s | W17: 2018 Division Shifts | X17: Division | Y17: 2018 Teams
A18: 1 | B18: 1 | C18: Jay Cupstid | D18: Springdale | E18: SARC | F18: Mizfits | H18: 28 | I18: =E18& "- " & F18 -> SARC- Mizfits | K18: Bracket | P18: Bracket | V18: Teams | X18: A | Y18: LKP- Will Play for Sets
A19: 2 | B19: 2 | C19: Jason Grieco | D19: Springdale | E19: SARC | F19: Volleywood | H19: 3 | I19: =E19& "- " & F19 -> SARC- Volleywood | K19: A1 | L19: 1 | M19: 2 | N19: 3 | O19: 4 | P19: A2 | Q19: 5 | R19: 6 | S19: 7 | T19: 8 | V19: LKP- Will Play for Sets | X19: A | Y19: LKP- Pass It Around
A20: 3 | B20: 3 | C20: Jennifer Daft | D20: Springdale | E20: SARC | F20: Sets on the Beach | H20: 24 | I20: SARC- Sets on the Beach | K20: C1 | L20: 9 | M20: 10 | N20: 11 | O20: 12 | P20: B2- | Q20: 13 | R20: 14 | S20: 15 | T20: 16 | V20: LKP- Pass It Around | X20: A | Y20: CSTC- Spikological Warfare
A21: 4 | B21: 4 | C21: John Marks | D21: Springdale | E21: SARC | F21: Sand Diggers | H21: 10 | I21: SARC- Sand Diggers | K21: B1 | L21: 17 | M21: 18 | N21: 19 | O21: 20 | P21: B2 | Q21: 21 | R21: 22 | S21: 23 | T21: 24 | V21: CSTC- Spikological Warfare | X21: A | Y21: NR- Hit That Thang
A22: 5 | B22: 5 | C22: Shawn Mabe | D22: Springdale | E22: SARC | F22: I'd Hit That | H22: 17 | I22: SARC- I'd Hit That | K22: D1 | L22: 25 | M22: 26 | N22: 27 | O22: 28 | P22: D2 | Q22: 29 | R22: 30 | S22: 31 | T22: 32 | V22: LKP- Bumpn' Uglies | X22: A | Y22: NR- Six Pack Attack
A23: 6 | B23: 6 | C23: Rob Caulfield | D23: Springdale | E23: SARC | F23: Raleigh Brawl | H23: 25 | I23: SARC- Raleigh Brawl | V23: NR- Six Pack Attack | X23: A | Y23: SARC- Volleywood
A24: 7 | B24: 7 | C24: Beth/Bruce Farell | D24: Springdale | E24: SARC | F24: Dirt Devils | H24: 18 | I24: SARC- Dirt Devils | J24: 2019 | V24: SARC- Volleywood | X24: A | Y24: SO- Kiss My Ace
A25: 8 | B25: 8 | C25: Haleigh McCollum | D25: Springdale | E25: SARC | F25: Good Bumps, Nice Sets | H25: 26 | I25: SARC- Good Bumps, Nice Sets | K25: Bracket | P25: Bracket | V25: SO- Kiss My Ace | X25: A | Y25: LKP- Air Vectors
A26: 9 | B26: 9 | C26: AP Blake | D26: Springdale | E26: SARC | F26: Here for Beer | H26: 27 | I26: SARC- Here for Beer | L26: SARC - Week 3 | M26: SARC - Week 3 | N26: SARC - Week 3 | O26: SARC - Week 3 | Q26: LKP - Week 3 | R26: LKP - Week 3 | S26: GS - Week 3 | T26: GS - Week 3 | V26: LKP- Air Vectors | X26: B | Y26: SARC- $et for Life
A27: 10 | B27: 10 | C27: Ray Gonzalez | D27: Springdale | E27: SARC | F27: Mojo Risin | H27: 32 | I27: SARC- Mojo Risin | J27: LKP - A Div teams week 2 | K27: A1 | L27: SO- Kiss My Ace | M27: SARC- $et for Life | N27: SARC- Volleywood | O27: LKP- Air Vectors | P27: A2 | Q27: LKP- Will Play for Sets | R27: LKP- Pass It Around | S27: GS- Sand Gators | T27: NR- Six Pack Attack | U27: A TEAMS | V27: SARC- $et for Life | X27: B | Y27: SARC- Sand Diggers
A28: 11 | B28: 11 | C28: Matt Vaughan | D28: Springdale | E28: SARC | F28: Notorious D.I.G. | H28: 20 | I28: SARC- Notorious D.I.G. | J28: GS - B Div teams week 2 | K28: B1 | L28: CSTC- Spikological Warfare | M28: SARC- Sand Diggers | N28: NR- Hit That Thang | O28: SO- Team Kona | P28: B2 | Q28: LKP- Block You Like a Hurricane | R28: LKP- Bumpn' Uglies | S28: GS- Where's My Beaches At? | T28: GS- Vicious & Delicious | U28: B TEAMS | V28: SARC- Sand Diggers | X28: B | Y28: LKP- Bumpn' Uglies
A29: 12 | B29: 12 | C29: Ryan Oxendine | D29: Springdale | E29: SARC | F29: Unprotected Sets | H29: 19 | I29: SARC- Unprotected Sets | J29: SARC- C Div teams week 2 | K29: C1 | L29: SARC- I'd Hit That | M29: SARC- Dirt Devils | N29: SARC- Unprotected Sets | O29: SARC- Notorious D.I.G. | P29: C2 | Q29: LKP- Casual Sets | R29: HG- Swingrays | S29: GS- El Toro's Revenge | T29: SARC- Sets on the Beach | U29: C Teams | V29: SARC- I'd Hit That | X29: B | Y29: SARC- Unprotected Sets
A30: 13 | B30: 13 | C30: Dan Schaefer | D30: Springdale | E30: SARC | F30: $et for Life | H30: 2 | I30: SARC- $et for Life | J30: SARC - D Div teams week 2 | K30: D1 | L30: SARC- Raleigh Brawl | M30: SARC- Good Bumps, Nice Sets | N30: SARC- Here for Beer | O30: SARC- Mizfits | P30: D2 | Q30: CSTC- Volley Llamas | R30: CSTC- Sand in Strange Places | S30: GS- Rhymes with Stupid | T30: SARC- Mojo Risin | U30: D Teams | V30: LKP- Casual Sets | X30: B | Y30: SARC- Notorious D.I.G.
A31: 14 | B31: 1 | C31: Greg Klofenstine | D31: Lakepark | E31: LKP | F31: Pass It Around | H31: 6 | I31: LKP- Pass It Around | V31: SARC- Notorious D.I.G. | X31: B | Y31: GS- Vicious & Delicious
A32: 15 | B32: 2 | C32: John Allen | D32: Lakepark | E32: LKP | F32: Will Play for Sets | H32: 5 | I32: LKP- Will Play for Sets | J32: "A" Division Teams | V32: GS- Vicious & Delicious | X32: B | Y32: LKP- Block You Like a Hurricane
A33: 16 | B33: 3 | C33: Ken Muller | D33: Lakepark | E33: LKP | F33: Bumpn' Uglies | H33: 14 | I33: LKP- Bumpn' Uglies | J33: "B" Division Teams | V33: LKP- Block You Like a Hurricane | X33: B | Y33: GS- Sand Gators
A34: 17 | B34: 4 | C34: Dave Radcliffe | D34: Lakepark | E34: LKP | F34: Casual Sets | H34: 21 | I34: LKP- Casual Sets | J34: "C" Division Teams | V34: GS- Sand Gators | X34: C | Y34: SARC- I'd Hit That
A35: 18 | B35: 5 | C35: Lawerance Lee | D35: Lakepark | E35: LKP | F35: Air Vectors | H35: 4 | I35: LKP- Air Vectors | J35: "D" Division Teams | V35: SARC- Raleigh Brawl | X35: C | Y35: LKP- Casual Sets
A36: 19 | B36: 6 | C36: Jim Perotti | D36: Lakepark | E36: LKP | F36: Block You Like a Hurricane | H36: 13 | I36: LKP- Block You Like a Hurricane | V36: NR- Hit That Thang | X36: C | Y36: GS- Where's My Beaches At?
A37: 20 | B37: 1 | C37: Vinnie Smith | D37: Seven Oaks | E37: SO | F37: Kiss My Ace | H37: 1 | I37: SO- Kiss My Ace | V37: GS- Where's My Beaches At? | X37: C | Y37: SARC- Good Bumps, Nice Sets
A38: 21 | B38: 2 | C38: Brian Tobey | D38: Seven Oaks | E38: SO | F38: Team Kona | H38: 12 | I38: SO- Team Kona | J38: 2018 Bracket Slots | L38: 2018 Brackets | V38: SARC- Good Bumps, Nice Sets | X38: C | Y38: HG- Swingrays
A39: 22 | B39: 1 | C39: Frank Koch | D39: Crabtree | E39: CSTC | F39: Sand in Strange Places | H39: 30 | I39: CSTC- Sand in Strange Places | K39: Bracket | P39: Bracket | V39: HG- Swingrays | X39: C | Y39: CSTC- Volley Llamas
A40: 22 | B40: 1 | C40: Tucker Soltesz | D40: Crabtree | E40: CSTC | F40: Spikological Warfare | H40: 9 | I40: =E40& "- " & F40 -> CSTC- Spikological Warfare | L40: SARC - Week 3 | M40: SARC - Week 3 | N40: SARC - Week 3 | O40: SARC - Week 3 | Q40: LKP - Week 3 | R40: LKP - Week 3 | S40: GS - Week 3 | T40: GS - Week 3 | V40: CSTC- Sand in Strange Places | X40: C | Y40: SO- Team Kona
A41: 24 | B41: 3 | C41: An(Drew) Mueller | D41: Crabtree | E41: CSTC | F41: Volley Llamas | H41: 29 | I41: =E41& "- " & F41 -> CSTC- Volley Llamas | J41: LKP - A Div teams week 2 | K41: A1 | L41: NR- Six Pack Attack | M41: SARC- Volleywood | N41: LKP- Air Vectors | O41: CSTC- Spikological Warfare | P41: A2 | Q41: LKP- Pass It Around | R41: NR- Hit That Thang | S41: LKP- Will Play for Sets | T41: SO- Kiss My Ace | U41: A TEAMS | V41: SARC- Unprotected Sets | X41: C | Y41: SARC- Sets on the Beach
A42: 25 | B42: 1 | C42: Marshall Lamb | D42: Greystone | E42: GS | F42: Where's My Beaches At? | H42: 15 | I42: GS- Where's My Beaches At? | J42: GS- C Div teams week 2 | K42: C1 | L42: SARC- I'd Hit That | M42: SO- Team Kona | N42: SARC- Good Bumps, Nice Sets | O42: SARC- Sets on the Beach | P42: C2 | Q42: LKP- Casual Sets | R42: CSTC- Volley Llamas | S42: HG- Swingrays | T42: GS- Where's My Beaches At? | U42: C Teams | V42: GS- El Toro's Revenge | X42: D | Y42: SARC- Raleigh Brawl
A43: 26 | B43: 2 | C43: Joe Cockerham | D43: Greystone | E43: GS | F43: El Toro's Revenge | H43: 23 | I43: GS- El Toro's Revenge | J43: SARC - B Div teams week 2 | K43: B1 | L43: SARC- Sand Diggers | M43: SARC- $et for Life | N43: SARC- Unprotected Sets | O43: SARC- Notorious D.I.G. | P43: B2 | Q43: LKP- Bumpn' Uglies | R43: LKP- Block You Like a Hurricane | S43: GS- Sand Gators | T43: GS- Vicious & Delicious | U43: B TEAMS | V43: CSTC- Volley Llamas | X43: D | Y43: CSTC- Sand in Strange Places
A44: 27 | B44: 3 | C44: Greg Wait | D44: Greystone | E44: GS | F44: Rhymes with Stupid | H44: 31 | I44: GS- Rhymes with Stupid | J44: SARC - D Div teams week 2 | K44: D1 | L44: SARC- Mizfits | M44: SARC- Raleigh Brawl | N44: SARC- Dirt Devils | O44: SARC- Here for Beer | P44: D2 | Q44: SARC- Mojo Risin | R44: CSTC- Sand in Strange Places | S44: GS- Rhymes with Stupid | T44: GS- El Toro's Revenge | U44: D Teams | V44: SO- Team Kona | X44: D | Y44: GS- Rhymes with Stupid
A45: 28 | B45: 4 | C45: Jeff Owens | D45: Greystone | E45: GS | F45: Vicious & Delicious | H45: 16 | I45: GS- Vicious & Delicious | V45: GS- Rhymes with Stupid | X45: D | Y45: GS- El Toro's Revenge
A46: 29 | B46: 5 | C46: Jeff Sharp | D46: Greystone | E46: GS | F46: Sand Gators | H46: 7 | I46: GS- Sand Gators | V46: SARC- Sets on the Beach | X46: D | Y46: SARC- Mizfits
A47: 30 | B47: 1 | C47: Jim White | D47: North Raleigh | E47: NR | F47: Six Pack Attack | H47: 8 | I47: NR- Six Pack Attack | V47: SARC- Mizfits | X47: D | Y47: SARC- Here for Beer
A48: 31 | B48: 2 | C48: Richard Adams | D48: North Raleigh | E48: NR | F48: Hit That Thang | H48: 11 | I48: NR- Hit That Thang | V48: SARC- Here for Beer | X48: D | Y48: SARC- Mojo Risin
A49: 32 | B49: 1 | C49: Glen Lucas | D49: Harrington Grove | E49: HG | F49: Swingrays | H49: 22 | I49: HG- Swingrays | V49: SARC- Mojo Risin | X49: D | Y49: SARC- Dirt Devils
V50: SARC- Dirt Devils
J52: 2017 Bracket Slots | L52: 2017 Brackets
K53: Bracket | P53: Bracket
L54: SARC - Week 3 | M54: SARC - Week 3 | N54: SARC - Week 3 | O54: SARC - Week 3 | Q54: LKP - Week 3 | R54: LKP - Week 3 | S54: GS - Week 3 | T54: GS - Week 3
J55: LKP - A Div teams week 2 | K55: A1 | L55: SARC- Volleywood | M55: LKP- Bumpn' Uglies | N55: SO- Kiss My Ace | O55: LKP- Air Vectors | P55: A2 | Q55: LKP- Will Play for Sets | R55: NR- Six Pack Attack | S55: LKP- Pass It Around | T55: CSTC- Spikological Warfare | U55: A TEAMS
J56: GS- C Div teams week 2 | K56: C1 | L56: SARC- Good Bumps, Nice Sets | M56: SARC- Raleigh Brawl | N56: SARC- Unprotected Sets | O56: CSTC- Sand in Strange Places | P56: C2 | Q56: NR- Hit That Thang | R56: HG- Swingrays | S56: GS- Where's My Beaches At? | T56: GS- El Toro's Revenge | U56: C Teams
J57: SARC - B Div teams week 2 | K57: B1 | L57: SARC- Notorious D.I.G. | M57: GS- Sand Gators | N57: SARC- Sand Diggers | O57: SARC- I'd Hit That | P57: B2 | Q57: LKP- Casual Sets | R57: LKP- Block You Like a Hurricane | S57: SARC- $et for Life | T57: GS- Vicious & Delicious | U57: B TEAMS
J58: SARC - D Div teams week 2 | K58: D1 | L58: SARC- Mizfits | M58: SARC- Mojo Risin | N58: SARC- Here for Beer | O58: SARC- Sets on the Beach | P58: D2 | Q58: SO- Team Kona | R58: GS- Rhymes with Stupid | S58: SARC- Dirt Devils | T58: CSTC- Volley Llamas | U58: D Teams
J63: 2016 Bracket Slots | L63: 2016 Brackets
K64: Bracket | P64: Bracket
L65: SARC - Week 3 | M65: SARC - Week 3 | N65: SARC - Week 3 | O65: SARC - Week 3 | Q65: LKP - Week 3 | R65: LKP - Week 3 | S65: GS - Week 3 | T65: GS - Week 3
J66: LKP - A Div teams week 2 | K66: A1 | L66: LPK-Air Vectors | M66: SARC- $et for Life | N66: CSTC- Spikological Warfare | O66: SARC- Volleywood | P66: A2 | Q66: LPK- Pass it Around | R66: LPK-WILL Play for Sets | S66: NR- Six Pack Attack | T66: SO- Kiss My Ace
J67: GS- C Div teams week 2 | K67: C1 | L67: SARC- Good Bumps | M67: SO- Team Kona | N67: CSTC- Volley Llamas | O67: CT Concrete Feet | P67: C2 | Q67: LKP- Block You Like a Hurricane | R67: HG- Swingrays | S67: GS- Sand Gators | T67: GS- Setual Healing
J68: SARC - B Div teams week 2 | K68: B1 | L68: SARC- Raleigh Brawl | M68: SARC- Sand Diggers | N68: SARC -I'd Hit That | O68: SARC-Notorious DIG | P68: B2 | Q68: LPK-Casual Sets | R68: LKP- Bumpn' Uglies | S68: NR- Hit That Thang | T68: GS-Where's My Beaches At?
J69: SARC - D Div teams week 2 | K69: D1 | L69: SARC Unprotected Sets | M69: SARC- Mizfits | N69: SARC- Here for Beer | O69: SARC- Dirt Devils | P69: D2 | Q69: SARC- Sets on the Beach | R69: SARC- Mojo Risin | S69: GS- El Toro's Revenge | T69: GS- Rhymes with Stupid
J73: 2015 Bracket Slots
L74: SARC - Week 3 | M74: SARC - Week 3 | N74: SARC - Week 3 | O74: SARC - Week 3 | Q74: LKP - Week 3 | R74: LKP - Week 3 | S74: GS - Week 3 | T74: GS - Week 3
J75: LKP - A Div teams week 2 | K75: A1 | L75: SO- Kiss My Ace | M75: LPK-Air Vectors | N75: SARC- Volleywood | O75: LPK- Pass it Around | P75: A2 | Q75: LPK-Casual Sets | R75: NR- Six Pack Attack | S75: LPK-WILL Play for Sets | T75: GS-Where's My Beaches At? A | U75: A TEAMS
J76: GS- C Div teams week 2 | K76: C1 | L76: SARC- $et for Life | M76: SARC- Dirt Devils | N76: SARC- Mojo Risin | O76: SARC- Good Bumps | P76: C2 | Q76: HG- Swing Rays | R76: LKP- Block You Like a Hurricane | S76: GS- Dirty Sets on Tuesdays | T76: GS- Sand Gators | U76: C Teams
J77: SARC - B Div teams week 2 | K77: B1 | L77: SARC- Raleigh Brawl | M77: SARC-Notorious DIG | N77: LKP- Bumpn' Uglies | O77: SARC- Sand Diggers | P77: B2 | Q77: NR Hit That Thang | R77: SARC -I'd Hit That | S77: CT Concrete Feet | T77: GS- Rhymes w Stupid | U77: B TEAMS
J78: SARC - D Div teams week 2 | K78: D1 | L78: SARC- Mizfits | M78: SARC- Sets on the Beach | N78: SARC- Here for Beer | O78: Team Sponsor | P78: D2 | Q78: SARC Unprotected Sets | R78: SO- Team Kona | S78: GS- El Toro's Revenge | T78: CSTC- Dangerous When Set | U78: D Teams

Sheet 32 team Bracketology
A1: 32 TEAM BRACKETOLOGY- The method to this schedule Madness
A3: Night 1 | B3: All at SARC- Play Within Your Bracket
B4: Teams play a round robin with 3 teams in their same Bracket
B5: 8 Brackets of 4- 3 games each
A6: Bracket | F6: Bracket
A7: A1 | B7: 1 | C7: 2 | D7: 3 | E7: 4 | F7: A2 | G7: 5 | H7: 6 | I7: 7 | J7: 8 | L7: A Division
A9: B1- | B9: 9 | C9: 10 | D9: 11 | E9: 12 | F9: C2 | G9: 13 | H9: 14 | I9: 15 | J9: 16 | L9: C Division
A11: B1 | B11: 17 | C11: 18 | D11: 19 | E11: 20 | F11: B2 | G11: 21 | H11: 22 | I11: 23 | J11: 24 | L11: B Division
A13: D1 | B13: 25 | C13: 26 | D13: 27 | E13: 28 | F13: D2 | G13: 29 | H13: 30 | I13: 31 | J13: 32 | L13: D Division
A16: Night 2 | B16: Play Adjoining Bracket- Bracket VS Bracket- Both are in the same Division
B17: each team Plays the other 4 teams in the adjoining bracket in the same Row
B18: 8 team brackets at 4 locations with 2 courts each
B19: 4 games for each team
B20: Bracket | G20: Bracket | M20: Best 8 Teams in Row 1
A21: SARC Red | B21: A1 | C21: 1 | D21: 2 | E21: 3 | F21: 4 | G21: A2 | H21: 5 | I21: 6 | J21: 7 | K21: 8 | M21: Bracket A1 vs A2
A23: LK | B23: B1- | C23: 9 | D23: 10 | E23: 11 | F23: 12 | G23: C2 | H23: 13 | I23: 14 | J23: 15 | K23: 16 | M23: Bracket B1- vs C2
A25: SARC Blue | B25: B1 | C25: 17 | D25: 18 | E25: 19 | F25: 20 | G25: B2 | H25: 21 | I25: 22 | J25: 23 | K25: 24 | M25: Bracket B1 vs B2
A27: GS | B27: D1 | C27: 25 | D27: 26 | E27: 27 | F27: 28 | G27: D2 | H27: 29 | I27: 30 | J27: 31 | K27: 32 | M27: Bracket D1 vs D2
T29: GS-Where's My Beaches At?
A30: Night 3 | B30: Vertical Brackets (Cross section of Divisions)
B31: Each team Plays the 3 teams within their column plus one team from the adjacent column | K31: (2 games- A/B matchups)
B32: 8 team brackets at 4 locations with 2 courts each | K32: (2 games- C/D matchups)
B33: 4 games for each team
B34: 2 columns of 4 teams play at each location
A36: SARC Red | B36: 1 | C36: 2 | D36: SARC Blue | E36: 3 | F36: 4 | G36: LK | H36: 5 | I36: 6 | J36: GS | K36: 7 | L36: 8
B37: 9 | C37: 10 | E37: 11 | F37: 12 | H37: 13 | I37: 14 | K37: 15 | L37: 16
B38: 17 | C38: 18 | E38: 19 | F38: 20 | H38: 21 | I38: 22 | K38: 23 | L38: 24
B39: 25 | C39: 26 | E39: 27 | F39: 28 | H39: 29 | I39: 30 | K39: 31 | L39: 32

Sheet # of games per night (hidden)
A1: Night 1 | B1: ALL at Springdale | K1: Nights 2 and 3 | M1: - 3 HOST CLUBS (SARC, LKP, and GS)
A2: # games | B2: time | C2: Courts | M2: 8 courts at 4 Sites w/ SARC counting as 2 Sites
A3: 1 | B3: 06:00:00 | C3: court 1 | E3: 32 teams | N3: SARC Red and SARC Bluelue to be one perm court and one temp sand court
A4: 2 | C4: court 2 | E4: 3 games each | K4: 1 | L4: 6 | M4: court 1
A5: 3 | C5: court 3 | E5: (32*3)/2 | K5: 2 | M5: court 2 | O5: SARC Red | P5: SARC Blue | Q5: LPK | R5: GS
A6: 4 | C6: court 4 | E6: =(32*3)/2 -> 48 | H6: # of games | K6: 3 | L6: 06:30:00 | M6: court 1 | O6: 2 courts | P6: 2 courts | Q6: 2 courts | R6: 2 courts
A7: 5 | C7: court 5 | K7: 4 | M7: court 2 | O7: 8 teams | P7: 8 teams | Q7: 8 teams | R7: 8 teams
A8: 6 | C8: court 6 | K8: 5 | L8: 7 | M8: court 1
A9: 7 | B9: 06:30:00 | C9: court 1 | E9: 4 total Sand courts at SARC w/ 2 temp Sand | K9: 6 | M9: court 2 | O9: Each Site- 8 teams
A10: 8 | C10: court 2 | E10: Courts 3 and 4 are temporary sand courts on the soccer field | K10: 7 | L10: 07:30:00 | M10: court 1 | O10: 4 games each | Q10: # of Games
A11: 9 | C11: court 3 | E11: 12 games on grass (courts 5 and 6)- no lights | K11: 8 | M11: court 2 | O11: (8*4)/2 | Q11: games per Site
A12: 10 | C12: court 4 | E12: 24 teams to play on grass | K12: 9 | L12: 8 | M12: court 1 | O12: =(8*4)/2 -> 16
A13: 11 | C13: court 5 | E13: Best 8 teams only play sand | K13: 10 | M13: court 2 | O13: Occuring at 4 Sites
A14: 12 | C14: court 6 | K14: 11 | L14: 08:30:00 | M14: court 1
A15: 13 | B15: 07:00:00 | C15: court 1 | E15: Games scheduled b/t 6 - 10:30 PM | K15: 12 | M15: court 2 | O15: Games scheduled b/t 6 PM - 10
A16: 14 | C16: court 2 | K16: 13 | L16: 9 | M16: court 1
A17: 15 | C17: court 3 | K17: 14 | M17: court 2
A18: 16 | C18: court 4 | K18: 15 | L18: 09:30:00 | M18: court 1
A19: 17 | C19: court 5 | K19: 16 | M19: court 2
A20: 18 | C20: court 6
A21: 19 | B21: 07:30:00 | C21: court 1 | J21: n
A22: 20 | C22: court 2
A23: 21 | C23: court 3
A24: 22 | C24: court 4
A25: 23 | C25: court 5
A26: 24 | C26: court 6
A27: 25 | B27: 08:00:00 | C27: court 1
A28: 26 | C28: court 2
A29: 27 | C29: court 3
A30: 28 | C30: court 4
A31: 29 | C31: court 5
A32: 30 | C32: court 6
A33: 31 | B33: 08:30:00 | C33: court 1
A34: 32 | C34: court 2
A35: 33 | C35: court 3
A36: 34 | C36: court 4
A37: 35 | C37: court 5 | E37: if dark, can opt to play at 10:30
A38: 36 | C38: court 6 | E38: if dark, can opt to play at 10:30
A39: 37 | B39: 09:00:00 | C39: court 1
A40: 38 | C40: court 2
A41: 39 | C41: court 3
A42: 40 | C42: court 4
A43: 41 | B43: 09:30:00 | C43: court 1
A44: 42 | C44: court 2
A45: 43 | C45: court 3
A46: 44 | C46: court 4
A47: 45 | B47: 10:00:00 | C47: court 1
A48: 46 | C48: court 2
A49: 47 | C49: court 3
A50: 48 | C50: court 4

Sheet Team # Match ups (hidden)
A1: Night 1 | M1: Night 2 | Y1: Night 3
A3: # games | B3: Bracket | C3: Team VS | D3: Team | M3: # games | N3: Bracket | O3: Team VS | P3: Team | S3: # games | T3: Bracket | U3: Team VS | V3: Team | Y3: # games | Z3: Bracket | AA3: Team VS | AB3: Team | AD3: # games | AE3: Bracket | AF3: Team VS | AG3: Team
A4: 1 | B4: A | C4: 1 | D4: 2 | M4: 1 | N4: SARC Red | O4: 1 | P4: 5 | S4: 1 | T4: SARC Blue | U4: 17 | V4: 21 | Y4: 1 | Z4: SARC Red | AA4: 1 | AB4: 9 | AD4: 1 | AE4: LPK | AF4: 5 | AG4: 13
A5: 2 | B5: A | C5: 1 | D5: 3 | M5: 2 | N5: SARC Red | O5: 1 | P5: 6 | S5: 2 | T5: SARC Blue | U5: 17 | V5: 22 | Y5: 2 | Z5: SARC Red | AA5: 1 | AB5: 17 | AD5: 2 | AE5: LPK | AF5: 5 | AG5: 21
A6: 3 | B6: A | C6: 4 | D6: 1 | M6: 3 | N6: SARC Red | O6: 7 | P6: 1 | S6: 3 | T6: SARC Blue | U6: 23 | V6: 17 | Y6: 3 | Z6: SARC Red | AA6: 25 | AB6: 1 | AD6: 3 | AE6: LPK | AF6: 29 | AG6: 5
A7: 4 | B7: A | C7: 2 | D7: 3 | M7: 4 | N7: SARC Red | O7: 8 | P7: 1 | S7: 4 | T7: SARC Blue | U7: 24 | V7: 17 | Y7: 4 | Z7: SARC Red | AA7: 17 | AB7: 9 | AD7: 4 | AE7: LPK | AF7: 21 | AG7: 13
A8: 5 | B8: A | C8: 2 | D8: 4 | M8: 5 | N8: SARC Red | O8: 2 | P8: 5 | S8: 5 | T8: SARC Blue | U8: 18 | V8: 21 | Y8: 5 | Z8: SARC Red | AA8: 9 | AB8: 25 | AD8: 5 | AE8: LPK | AF8: 13 | AG8: 29
A9: 6 | B9: A | C9: 3 | D9: 4 | M9: 6 | N9: SARC Red | O9: 2 | P9: 6 | S9: 6 | T9: SARC Blue | U9: 18 | V9: 22 | Y9: 6 | Z9: SARC Red | AA9: 17 | AB9: 25 | AD9: 6 | AE9: LPK | AF9: 21 | AG9: 29
A10: 7 | B10: B | C10: 5 | D10: 6 | M10: 7 | N10: SARC Red | O10: 7 | P10: 2 | S10: 7 | T10: SARC Blue | U10: 23 | V10: 18 | Y10: 7 | Z10: SARC Red | AA10: 10 | AB10: 1 | AD10: 7 | AE10: LPK | AF10: 14 | AG10: 5
A11: 8 | B11: B | C11: 5 | D11: 7 | M11: 8 | N11: SARC Red | O11: 8 | P11: 2 | S11: 8 | T11: SARC Blue | U11: 24 | V11: 18 | Y11: 8 | Z11: SARC Red | AA11: 9 | AB11: 18 | AD11: 8 | AE11: LPK | AF11: 13 | AG11: 22
A12: 9 | B12: B | C12: 8 | D12: 5 | M12: 9 | N12: SARC Red | O12: 5 | P12: 3 | S12: 9 | T12: SARC Blue | U12: 21 | V12: 19 | Y12: 9 | Z12: SARC Red | AA12: 26 | AB12: 17 | AD12: 9 | AE12: LPK | AF12: 30 | AG12: 21
A13: 10 | B13: B | C13: 6 | D13: 7 | M13: 10 | N13: SARC Red | O13: 6 | P13: 3 | S13: 10 | T13: SARC Blue | U13: 22 | V13: 19 | Y13: 10 | Z13: SARC Red | AA13: 25 | AB13: 2 | AD13: 10 | AE13: LPK | AF13: 29 | AG13: 6
A14: 11 | B14: B | C14: 6 | D14: 8 | M14: 11 | N14: SARC Red | O14: 3 | P14: 7 | S14: 11 | T14: SARC Blue | U14: 19 | V14: 23 | Y14: 11 | Z14: SARC Red | AA14: 2 | AB14: 10 | AD14: 11 | AE14: LPK | AF14: 6 | AG14: 14
A15: 12 | B15: B | C15: 7 | D15: 8 | M15: 12 | N15: SARC Red | O15: 3 | P15: 8 | S15: 12 | T15: SARC Blue | U15: 19 | V15: 24 | Y15: 12 | Z15: SARC Red | AA15: 2 | AB15: 18 | AD15: 12 | AE15: LPK | AF15: 6 | AG15: 22
A16: 13 | B16: C | C16: 9 | D16: 10 | M16: 13 | N16: SARC Red | O16: 5 | P16: 4 | S16: 13 | T16: SARC Blue | U16: 21 | V16: 20 | Y16: 13 | Z16: SARC Red | AA16: 26 | AB16: 2 | AD16: 13 | AE16: LPK | AF16: 30 | AG16: 6
A17: 14 | B17: C | C17: 9 | D17: 11 | M17: 14 | N17: SARC Red | O17: 6 | P17: 4 | S17: 14 | T17: SARC Blue | U17: 22 | V17: 20 | Y17: 14 | Z17: SARC Red | AA17: 18 | AB17: 10 | AD17: 14 | AE17: LPK | AF17: 22 | AG17: 14
A18: 15 | B18: C | C18: 12 | D18: 9 | M18: 15 | N18: SARC Red | O18: 4 | P18: 7 | S18: 15 | T18: SARC Blue | U18: 20 | V18: 23 | Y18: 15 | Z18: SARC Red | AA18: 10 | AB18: 26 | AD18: 15 | AE18: LPK | AF18: 14 | AG18: 30
A19: 16 | B19: C | C19: 10 | D19: 11 | M19: 16 | N19: SARC Red | O19: 4 | P19: 8 | S19: 16 | T19: SARC Blue | U19: 20 | V19: 24 | Y19: 16 | Z19: SARC Red | AA19: 18 | AB19: 26 | AD19: 16 | AE19: LPK | AF19: 22 | AG19: 30
A20: 17 | B20: C | C20: 10 | D20: 12
A21: 18 | B21: C | C21: 11 | D21: 12
A22: 19 | B22: D | C22: 13 | D22: 14 | M22: 1 | N22: LPK | O22: 9 | P22: 13 | S22: 1 | T22: GS | U22: 25 | V22: 29 | Y22: 1 | Z22: SARC Blue | AA22: 3 | AB22: 11 | AD22: 1 | AE22: GS | AF22: 7 | AG22: 15
A23: 20 | B23: D | C23: 13 | D23: 15 | M23: 2 | N23: LPK | O23: 9 | P23: 14 | S23: 2 | T23: GS | U23: 25 | V23: 30 | Y23: 2 | Z23: SARC Blue | AA23: 3 | AB23: 19 | AD23: 2 | AE23: GS | AF23: 7 | AG23: 23
A24: 21 | B24: D | C24: 16 | D24: 13 | M24: 3 | N24: LPK | O24: 15 | P24: 9 | S24: 3 | T24: GS | U24: 31 | V24: 25 | Y24: 3 | Z24: SARC Blue | AA24: 27 | AB24: 3 | AD24: 3 | AE24: GS | AF24: 31 | AG24: 7
A25: 22 | B25: D | C25: 14 | D25: 15 | M25: 4 | N25: LPK | O25: 16 | P25: 9 | S25: 4 | T25: GS | U25: 32 | V25: 25 | Y25: 4 | Z25: SARC Blue | AA25: 19 | AB25: 11 | AD25: 4 | AE25: GS | AF25: 23 | AG25: 15
A26: 23 | B26: D | C26: 14 | D26: 16 | M26: 5 | N26: LPK | O26: 10 | P26: 13 | S26: 5 | T26: GS | U26: 26 | V26: 29 | Y26: 5 | Z26: SARC Blue | AA26: 11 | AB26: 27 | AD26: 5 | AE26: GS | AF26: 15 | AG26: 31
A27: 24 | B27: D | C27: 15 | D27: 16 | M27: 6 | N27: LPK | O27: 10 | P27: 14 | S27: 6 | T27: GS | U27: 26 | V27: 30 | Y27: 6 | Z27: SARC Blue | AA27: 19 | AB27: 27 | AD27: 6 | AE27: GS | AF27: 23 | AG27: 31
A28: 25 | B28: E | C28: 17 | D28: 18 | M28: 7 | N28: LPK | O28: 15 | P28: 10 | S28: 7 | T28: GS | U28: 31 | V28: 26 | Y28: 7 | Z28: SARC Blue | AA28: 12 | AB28: 3 | AD28: 7 | AE28: GS | AF28: 16 | AG28: 7
A29: 26 | B29: E | C29: 17 | D29: 19 | M29: 8 | N29: LPK | O29: 16 | P29: 10 | S29: 8 | T29: GS | U29: 32 | V29: 26 | Y29: 8 | Z29: SARC Blue | AA29: 11 | AB29: 20 | AD29: 8 | AE29: GS | AF29: 15 | AG29: 24
A30: 27 | B30: E | C30: 20 | D30: 17 | M30: 9 | N30: LPK | O30: 13 | P30: 11 | S30: 9 | T30: GS | U30: 29 | V30: 27 | Y30: 9 | Z30: SARC Blue | AA30: 28 | AB30: 19 | AD30: 9 | AE30: GS | AF30: 32 | AG30: 23
A31: 28 | B31: E | C31: 18 | D31: 19 | M31: 10 | N31: LPK | O31: 14 | P31: 11 | S31: 10 | T31: GS | U31: 30 | V31: 27 | Y31: 10 | Z31: SARC Blue | AA31: 27 | AB31: 4 | AD31: 10 | AE31: GS | AF31: 31 | AG31: 8
A32: 29 | B32: E | C32: 18 | D32: 20 | M32: 11 | N32: LPK | O32: 11 | P32: 15 | S32: 11 | T32: GS | U32: 27 | V32: 31 | Y32: 11 | Z32: SARC Blue | AA32: 4 | AB32: 12 | AD32: 11 | AE32: GS | AF32: 8 | AG32: 16
A33: 30 | B33: E | C33: 19 | D33: 20 | M33: 12 | N33: LPK | O33: 11 | P33: 16 | S33: 12 | T33: GS | U33: 27 | V33: 32 | Y33: 12 | Z33: SARC Blue | AA33: 4 | AB33: 20 | AD33: 12 | AE33: GS | AF33: 8 | AG33: 24
A34: 31 | B34: F | C34: 21 | D34: 22 | M34: 13 | N34: LPK | O34: 13 | P34: 12 | S34: 13 | T34: GS | U34: 29 | V34: 28 | Y34: 13 | Z34: SARC Blue | AA34: 28 | AB34: 4 | AD34: 13 | AE34: GS | AF34: 32 | AG34: 8
A35: 32 | B35: F | C35: 21 | D35: 23 | M35: 14 | N35: LPK | O35: 14 | P35: 12 | S35: 14 | T35: GS | U35: 30 | V35: 28 | Y35: 14 | Z35: SARC Blue | AA35: 20 | AB35: 12 | AD35: 14 | AE35: GS | AF35: 24 | AG35: 16
A36: 33 | B36: F | C36: 24 | D36: 21 | M36: 15 | N36: LPK | O36: 12 | P36: 15 | S36: 15 | T36: GS | U36: 28 | V36: 31 | Y36: 15 | Z36: SARC Blue | AA36: 12 | AB36: 28 | AD36: 15 | AE36: GS | AF36: 16 | AG36: 32
A37: 34 | B37: F | C37: 22 | D37: 23 | M37: 16 | N37: LPK | O37: 12 | P37: 16 | S37: 16 | T37: GS | U37: 28 | V37: 32 | Y37: 16 | Z37: SARC Blue | AA37: 20 | AB37: 28 | AD37: 16 | AE37: GS | AF37: 24 | AG37: 32
A38: 35 | B38: F | C38: 22 | D38: 24
A39: 36 | B39: F | C39: 23 | D39: 24
A40: 37 | B40: G | C40: 25 | D40: 26
A41: 38 | B41: G | C41: 25 | D41: 27
A42: 39 | B42: G | C42: 28 | D42: 25
A43: 40 | B43: G | C43: 26 | D43: 27
A44: 41 | B44: G | C44: 26 | D44: 28
A45: 42 | B45: G | C45: 27 | D45: 28
A46: 43 | B46: H | C46: 29 | D46: 30
A47: 44 | B47: H | C47: 29 | D47: 31
A48: 45 | B48: H | C48: 32 | D48: 29
A49: 46 | B49: H | C49: 30 | D49: 31
A50: 47 | B50: H | C50: 30 | D50: 32
A51: 48 | B51: H | C51: 31 | D51: 32
